Workbook

Sheet Photos
B2: Pilotes | F2: Autos | J2: Logos | N2: Champions Pilotes | R2: Champions Voitures
B3: Noms | D3: Photos | F3: Noms | H3: Photos | J3: Noms | L3: Photos | N3: Noms | P3: Drapeaux | R3: Noms | T3: Drapeaux
B4: HAMILTON Lewis | C4: ="Photos!"&ADDRESS(ROW(C4),COLUMN(D4)) -> Photos!$D$4 | F4: MERCEDES | G4: ="Photos!"&ADDRESS(ROW(G4),COLUMN(H4)) -> Photos!$H$4 | J4: MERCEDES | K4: ="Photos!"&ADDRESS(ROW(K4),COLUMN(L4)) -> Photos!$L$4 | N4: HAMILTON Lewis | O4: ="Photos!"&ADDRESS(ROW(O4),COLUMN(P4)) -> Photos!$P$4 | R4: MERCEDES | S4: ="Photos!"&ADDRESS(ROW(S4),COLUMN(T4)) -> Photos!$T$4
B5: RUSSELL George | C5: Photos!$D$5 | F5: FERRARI | G5: Photos!$H$5 | J5: FERRARI | K5: ="Photos!"&ADDRESS(ROW(K5),COLUMN(L5)) -> Photos!$L$5 | N5: RUSSELL George | O5: Photos!$P$5 | R5: FERRARI | S5: Photos!$T$5
B6: LECLERC Charles | C6: Photos!$D$6 | F6: RED BULL RACING | G6: Photos!$H$6 | J6: RED BULL RACING | K6: Photos!$L$6 | N6: LECLERC Charles | O6: Photos!$P$6 | R6: RED BULL RACING | S6: Photos!$T$6
B7: SAINZ.Jr Carlos | C7: Photos!$D$7 | F7: ASTON MARTIN | G7: Photos!$H$7 | J7: ASTON MARTIN | K7: Photos!$L$7 | N7: SAINZ.Jr Carlos | O7: Photos!$P$7 | R7: ASTON MARTIN | S7: Photos!$T$7
B8: VERSTAPPEN Max | C8: Photos!$D$8 | F8: WILLIAMS | G8: Photos!$H$8 | J8: WILLIAMS | K8: Photos!$L$8 | N8: VERSTAPPEN Max | O8: Photos!$P$8 | R8: WILLIAMS | S8: Photos!$T$8
B9: PEREZ Sergio | C9: Photos!$D$9 | F9: ALPINE F1 TEAM | G9: Photos!$H$9 | J9: ALPINE F1 TEAM | K9: Photos!$L$9 | N9: PEREZ Sergio | O9: Photos!$P$9 | R9: ALPINE F1 TEAM | S9: Photos!$T$9
B10: STROLL Lance | C10: Photos!$D$10 | F10: ALPHA TAURI | G10: Photos!$H$10 | J10: ALPHA TAURI | K10: Photos!$L$10 | N10: STROLL Lance | O10: Photos!$P$10 | R10: ALPHA TAURI | S10: Photos!$T$10
B11: ALONSO Fernando | C11: Photos!$D$11 | F11: HAAS | G11: Photos!$H$11 | J11: HAAS | K11: Photos!$L$11 | N11: ALONSO Fernando | O11: Photos!$P$11 | R11: HAAS | S11: Photos!$T$11
B12: SARGEANT Logan | C12: Photos!$D$12 | F12: Mc LAREN | G12: Photos!$H$12 | J12: Mc LAREN | K12: Photos!$L$12 | N12: SARGEANT Logan | O12: Photos!$P$12 | R12: Mc LAREN | S12: Photos!$T$12
B13: ALBON Alexander | C13: Photos!$D$13 | F13: ALFA ROMÉO | G13: Photos!$H$13 | J13: ALFA ROMÉO | K13: Photos!$L$13 | N13: ALBON Alexander | O13: Photos!$P$13 | R13: ALFA ROMÉO | S13: Photos!$T$13
B14: GASLY Pierre | C14: Photos!$D$14 | N14: GASLY Pierre | O14: Photos!$P$14
B15: OCON Sebastian | C15: Photos!$D$15 | N15: OCON Sebastian | O15: Photos!$P$15
B16: TSUNODA Yoki | C16: Photos!$D$16 | N16: TSUNODA Yoki | O16: Photos!$P$16
B17: DEVRIES Nyck | C17: Photos!$D$17 | N17: DEVRIES Nyck | O17: Photos!$P$17
B18: HULKENBERG Nico | C18: Photos!$D$18 | N18: HULKENBERG Nico | O18: Photos!$P$18
B19: MAGNUSSEN Kevin | C19: Photos!$D$19 | N19: MAGNUSSEN Kevin | O19: Photos!$P$19
B20: NORRIS Lando | C20: Photos!$D$20 | N20: NORRIS Lando | O20: Photos!$P$20
B21: PIASTRI Oscar | C21: Photos!$D$21 | N21: PIASTRI Oscar | O21: Photos!$P$21
B22: BOTTAS Valtteri | C22: Photos!$D$22 | N22: BOTTAS Valtteri | O22: Photos!$P$22
B23: GUANYU Zhou | C23: Photos!$D$23 | N23: GUANYU Zhou | O23: Photos!$P$23
B24: DUGROVICH Felipe | C24: Photos!$D$24 | N24: DUGROVICH Felipe | O24: Photos!$P$24
C25: Photos!$D$25 | O25: Photos!$P$25
C26: Photos!$D$26 | O26: Photos!$P$26
C27: ="Photos!"&ADDRESS(ROW(C27),COLUMN(D27)) -> Photos!$D$27 | O27: ="Photos!"&ADDRESS(ROW(O27),COLUMN(P27)) -> Photos!$P$27

Sheet Champions
C4: CHAMPIONNAT PILOTES 2023
F8: CHAMPION 2023
F9: =IF(Pilotes!G5=1,Pilotes!$B$5,"") -> VERSTAPPEN Max
B11: DEUXIÈME | J11: TROIXIÈME
B12: =IF(Pilotes!$G$6=2,Pilotes!$B$6,"") -> PEREZ Sergio | J12: =IF(Pilotes!$G$7=3,Pilotes!$B$7,"") -> ALONSO Fernando
C29: CHAMPIONNAT CONSTRUCTEURS 2023
F35: CHAMPION 2023
F36: =IF(Écuries!$G$4=1,Écuries!$C$4,"") -> RED BULL RACING
B38: DEUXIÈME | J38: TROIXIÈME
B39: =IF(Écuries!$G$5=2,Écuries!$C$5,"") -> ASTON MARTIN | J39: =IF(Écuries!$G$6=3,Écuries!$C$6,"") -> MERCEDES

Sheet Écuries
C3: ÉCURIES | D3: POINTS | E3: Écart/premier | F3: Écart/précédent | G3: RANG
C4: RED BULL RACING | D4: =SUM(Bahrein:AbuDhabi!$G$11:$G$13) -> 224 | G4: =IF(D4="",0,(RANK(D4,$D$4:$D$13))) -> 1
C5: ASTON MARTIN | D5: =SUM(Bahrein:AbuDhabi!$G$14:$G$16) -> 102 | E5: =D4-D5 -> 122 | F5: =D4-D5 -> 122 | G5: 2
C6: MERCEDES | D6: =SUM(Bahrein:AbuDhabi!$G$5:$G$7) -> 96 | E6: =D4-D6 -> 128 | F6: =D5-D6 -> 6 | G6: 3
C7: FERRARI | D7: =SUM(Bahrein:AbuDhabi!$G$8:$G$10) -> 78 | E7: =D4-D7 -> 146 | F7: 18 | G7: 4
C8: Mc LAREN | D8: =SUM(Bahrein:AbuDhabi!$G$29:$G$31) -> 14 | E8: =D4-D8 -> 210 | F8: 64 | G8: 5
C9: ALPINE F1 TEAM | D9: =SUM(Bahrein:AbuDhabi!$G$20:$G$22) -> 14 | E9: =D4-D9 -> 210 | F9: =D8-D9 -> 0 | G9: 5
C10: HAAS | D10: =SUM(Bahrein:AbuDhabi!$G$26:$G$28) -> 8 | E10: =D4-D10 -> 216 | F10: 6 | G10: 7
C11: ALFA ROMÉO | D11: =SUM(Bahrein:AbuDhabi!$G$32:$G$34) -> 6 | E11: =D4-D11 -> 218 | F11: 2 | G11: 8
C12: ALPHA TAURI | D12: =SUM(Bahrein:AbuDhabi!$G$23:$G$25) -> 2 | E12: =D4-D12 -> 222 | F12: 4 | G12: 9
C13: WILLIAMS | D13: =SUM(Bahrein:AbuDhabi!$G$17:$G$19) -> 1 | E13: =D4-D13 -> 223 | F13: =D12-D13 -> 1 | G13: 10
C17: Écuries | D17: POINTS | E17: VS | F17: Écuries | G17: POINTS
C18: ALPINE F1 TEAM | D18: =INDEX(D4:D13,MATCH(C18,C4:C13,0)) -> 14 | F18: FERRARI | G18: =INDEX($D$4:$D$13,MATCH($F$18,C4:C13,0)) -> 78
E20: ÉCART
E21: =D18-G18 -> -64

Sheet Pilotes
B3: PILOTES | C3: Points | D3: Écart-premier | E3: Écart/précédent | F3: Pôle Position | G3: Place | H3: 1 | J3: Courses
C4: =IFERROR(SUM([1]Australie!G33,[2]Bahreïn!F33),"") -> 0 | G4: =IF(C4=0,"",(RANK(C4,C1:C4))) ->  | H4: Nbre de fois | I4: % | J4: =IF(F4=0,"",(RANK(F4,F1:F4))) -> 
B5: VERSTAPPEN Max | C5: =SUM(Bahrein:AbuDhabi!$G$11) -> 119 | F5: =CalculPool(B5) ->  | G5: =IF(C5="",0,(RANK(C5,$C$5:$C$28))) -> 1 | H5: =CalculPosition(B5) -> 3 | I5: =H5/22 -> 0.1363636364 | J5: Australie | K5: Bahrein | L5: Australie | M5: Miami
B6: PEREZ Sergio | C6: =SUM(Bahrein:AbuDhabi!$G$12) -> 105 | D6: =C5-C6 -> 14 | E6: =C5-C6 -> 14 | G6: 2 | H6: 2 | I6: 0.09090909091 | J6: AbuDhabi | K6: Arabie Saoudite | L6: Azerbaïdjan
B7: ALONSO Fernando | C7: =SUM(Bahrein:AbuDhabi!$G$14) -> 75 | D7: =C5-C7 -> 44 | E7: 30 | G7: 3 | H7: 0 | I7: 0 | J7: Arabie Saoudite
B8: HAMILTON Lewis | C8: =SUM(Bahrein:AbuDhabi!$G$5) -> 56 | D8: =C5-C8 -> 63 | E8: 19 | G8: 4 | H8: 0 | I8: 0 | J8: Autriche
B9: SAINZ.Jr Carlos | C9: =SUM(Bahrein:AbuDhabi!$G$8) -> 44 | D9: =C5-C9 -> 75 | E9: 12 | G9: 5 | H9: 0 | I9: 0 | J9: Azerbaïdjan
B10: RUSSELL George | C10: =SUM(Bahrein:AbuDhabi!$G$6) -> 40 | D10: =C5-C10 -> 79 | E10: 4 | G10: 6 | H10: 0 | I10: 0 | J10: Bahrein
B11: LECLERC Charles | C11: =SUM(Bahrein:AbuDhabi!$G$9) -> 34 | D11: =C5-C11 -> 85 | E11: 6 | G11: 7 | H11: 0 | I11: 0 | J11: Belgique
B12: STROLL Lance | C12: =SUM(Bahrein:AbuDhabi!$G$15) -> 27 | D12: =C5-C12 -> 92 | E12: 7 | G12: 8 | H12: 0 | I12: 0 | J12: Brésil
B13: NORRIS Lando | C13: =SUM(Bahrein:AbuDhabi!$G$29) -> 10 | D13: =C5-C13 -> 109 | E13: 17 | G13: 9 | H13: 0 | I13: 0 | J13: Canada
B14: GASLY Pierre | C14: =SUM(Bahrein:AbuDhabi!$G$20) -> 8 | D14: =C5-C14 -> 111 | E14: 2 | G14: 10 | H14: 0 | I14: 0 | J14: Espagne
B15: OCON Sebastian | C15: =SUM(Bahrein:AbuDhabi!$G$21) -> 6 | D15: =C5-C15 -> 113 | E15: 2 | G15: 11 | H15: 0 | I15: 0 | J15: GB
B16: HULKENBERG Nico | C16: =SUM(Bahrein:AbuDhabi!$G$27) -> 6 | D16: =C5-C16 -> 113 | E16: 0 | G16: 11 | H16: 0 | I16: 0 | J16: Hongrie
B17: PIASTRI Oscar | C17: =SUM(Bahrein:AbuDhabi!$G$30) -> 4 | D17: =C5-C17 -> 115 | E17: 2 | G17: 13 | H17: 0 | I17: 0 | J17: Italie
B18: BOTTAS Valtteri | C18: =SUM(Bahrein:AbuDhabi!$G$32) -> 4 | D18: =C5-C18 -> 115 | E18: 0 | G18: 13 | H18: 0 | I18: 0 | J18: ItalieIm
B19: TSUNODA Yoki | C19: =SUM(Bahrein:AbuDhabi!$G$23) -> 2 | D19: =C5-C19 -> 117 | E19: 2 | G19: 15 | H19: 0 | I19: 0 | J19: Japon
B20: MAGNUSSEN Kevin | C20: =SUM(Bahrein:AbuDhabi!$G$26) -> 2 | D20: =C5-C20 -> 117 | E20: 0 | G20: 15 | H20: 0 | I20: 0 | J20: Las Végas
B21: GUANYU Zhou | C21: =SUM(Bahrein:AbuDhabi!$G$33) -> 2 | D21: =C5-C21 -> 117 | E21: 0 | G21: 15 | H21: 0 | I21: 0 | J21: Mexique
B22: ALBON Alexander | C22: =SUM(Bahrein:AbuDhabi!$G$17) -> 1 | D22: =C5-C22 -> 118 | E22: 1 | G22: 18 | H22: 0 | I22: 0 | J22: Miami
B23: DEVRIES Nyck | C23: =SUM(Bahrein:AbuDhabi!$G$24) -> 0 | D23: =C5-C23 -> 119 | E23: 1 | G23: 19 | H23: 0 | I23: 0 | J23: Monaco
B24: SARGEANT Logan | C24: =SUM(Bahrein:AbuDhabi!$G$18) -> 0 | D24: =C5-C24 -> 119 | E24: 0 | G24: 19 | H24: 0 | I24: 0 | J24: Pays-Bas
J25: Qatar
J26: Singapour
J27: USA
I30: Moyenne
I31: =AVERAGE($I$5:$I$28) -> 0.01136363636
B32: PILOTE 1 | C32: Points | D32: VS | E32: PILOTE 2 | F32: Points
B33: RUSSELL George | C33: =INDEX(C5:C28,MATCH(B33,B5:B28,0)) -> 40 | E33: HAMILTON Lewis | F33: =INDEX(C5:C28,MATCH(E33,B5:B28,0)) -> 56
D35: ÉCART
D36: =C33-F33 -> -16

Sheet Bahrein
A1: SAKHIR - 5 MARS 2023
A3: PILOTES | B3: ECURIES | C3: VOITURES | D3: Finish | E3: Pôle | F3: Pt tour | G3: Points | I3: ÉCURIES | J3: Points | K3: Écart | L3: Rang | N3: Noms | O3: Points | P3: Écart | Q3: Rang
I4: RED BULL RACING | J4: =SUM($G$11:$G$13) -> 43 | K4: =J4-J5 -> 20 | L4: =IF(J4="",0,(RANK(J4,$J$4:$J$13))) -> 1 | N4: VERSTAPPEN Max | O4: =$G$11 -> 25 | Q4: =IF(O4="",0,(RANK(O4,$O$4:$O$23))) -> 1
A5: HAMILTON Lewis | B5: MERCEDES | D5: 5 | G5: =IFERROR(CHOOSE(D5,25,18,15,12,10,8,6,4,2,1)+(F5=1),0) -> 10 | I5: ASTON MARTIN | J5: =SUM($G$14:$G$16) -> 23 | K5: =J4-J5 -> 20 | L5: 2 | N5: PEREZ Sergio | O5: =$G$12 -> 18 | P5: =O4-O5 -> 7 | Q5: =IF(O5="",0,(RANK(O5,$O$4:$O$23))) -> 2
A6: RUSSELL George | D6: 7 | G6: =IFERROR(CHOOSE(D6,25,18,15,12,10,8,6,4,2,1)+(F6=1),0) -> 6 | I6: MERCEDES | J6: =SUM($G$5:$G$7) -> 16 | K6: =J5-J6 -> 7 | L6: 3 | N6: ALONSO Fernando | O6: =$G$14 -> 15 | P6: =O5-O6 -> 3 | Q6: 3
G7: 0 | I7: FERRARI | J7: =SUM($G$8:$G$10) -> 12 | K7: 4 | L7: 4 | N7: SAINZ.Jr Carlos | O7: =$G$8 -> 12 | P7: 3 | Q7: 4
A8: SAINZ.Jr Carlos | B8: FERRARI | D8: 4 | G8: 12 | I8: ALFA ROMÉO | J8: =SUM($G$32:$G$34) -> 4 | K8: 8 | L8: 5 | N8: HAMILTON Lewis | O8: =$G$5 -> 10 | P8: 2 | Q8: 5
A9: LECLERC Charles | D9: OUT | G9: 0 | I9: ALPINE F1 TEAM | J9: =SUM($G$20:$G$22) -> 2 | K9: 2 | L9: 6 | N9: STROLL Lance | O9: =$G$15 -> 8 | P9: 2 | Q9: 6
G10: 0 | I10: WILLIAMS | J10: =SUM($G$17:$G$19) -> 1 | K10: 1 | L10: 7 | N10: RUSSEL George | O10: =$G$6 -> 6 | P10: 2 | Q10: 7
A11: VERSTAPPEN Max | B11: RED BULL RACING | D11: 1 | E11: 1 | G11: 25 | I11: ALPHA TAURI | J11: =SUM($G$23:$G$25) -> 0 | K11: 1 | L11: 8 | N11: BOTTAS Valtteri | O11: =$G$32 -> 4 | P11: 2 | Q11: 8
A12: PEREZ Sergio | D12: 2 | G12: 18 | I12: Mc LAREN | J12: =SUM($G$29:$G$31) -> 0 | K12: 0 | L12: 8 | N12: ALBON Alexander | O12: =$G$17 -> 1 | P12: 3 | Q12: 9
G13: 0 | I13: HAAS | J13: =SUM($G$26:$G$28) -> 0 | K13: 0 | L13: 8 | N13: LECLERC Charles | O13: =$G$9 -> 0 | P13: 1 | Q13: 10
A14: ALONSO Fernando | B14: ASTON MARTIN | D14: 3 | G14: 15 | N14: MAGNUSSEN Kevin | O14: =$G$26 -> 0 | P14: 0 | Q14: 10
A15: STROLL Lance | D15: 6 | G15: 8 | N15: OCON Sebastian | O15: =$G$21 -> 0 | P15: 0 | Q15: 10
G16: 0 | N16: TSUNODA Yoki | O16: =$G$23 -> 0 | P16: 0 | Q16: 10
A17: ALBON Alexander | B17: WILLIAMS | D17: 10 | G17: 1 | N17: GUANYU Zhou | O17: =$G$33 -> 0 | P17: 0 | Q17: 10
A18: SARGEANT Logan | D18: 12 | G18: 0 | N18: NORRIS Lando | O18: =$G$29 -> 0 | P18: 0 | Q18: 10
G19: 0 | N19: PIASTRI Oscar | O19: =$G$30 -> 0 | P19: 0 | Q19: 10
A20: GASLY Pierre | B20: ALPINE F1 TEAM | D20: 9 | G20: 2 | N20: GASLY Pierre | O20: =$G$24 -> 0 | P20: 0 | Q20: 10
A21: OCON Sebastian | D21: OUT | G21: 0 | N21: DEVRIES Nyck | O21: =$G$24 -> 0 | P21: 0 | Q21: 10
G22: 0 | N22: SARGEANT Logan | O22: =$G$18 -> 0 | P22: 0 | Q22: 10
A23: TSUNODA Yoki | B23: ALPHA TAURI | D23: 11 | G23: 0 | N23: HULKENBERG Nico | O23: =$G$27 -> 0 | P23: 0 | Q23: 10
A24: DEVRIES Nyck | D24: 14 | G24: 0
G25: 0
A26: MAGNUSSEN Kevin | B26: HAAS | D26: 13 | G26: 0
A27: HULKENBERG Nico | D27: 15 | G27: 0
G28: 0
A29: NORRIS Lando | B29: Mc LAREN | D29: 17 | G29: 0
A30: PIASTRI Oscar | D30: OUT | G30: 0
G31: 0
A32: BOTTAS Valtteri | B32: ALFA ROMÉO | D32: 8 | G32: 4
A33: GUANYU Zhou | D33: 16 | G33: 0
G34: 0

Sheet Arabie Saoudite
A1: DJEDDAH - 19 MARS 2023
A3: PILOTES | B3: ECURIES | C3: VOITURES | D3: Finish | E3: Pôle | F3: Pt tour | G3: Points | I3: ÉCURIES | J3: Points | K3: Écart | L3: Rang | N3: Noms | O3: Points | P3: Écart | Q3: Rang
I4: RED BULL RACING | J4: =SUM('Bahrein:Arabie Saoudite'!$G$11:$G$13) -> 87 | L4: =IF(J4="",0,(RANK(J4,$J$4:$J$13))) -> 1 | N4: VERSTAPPEN Max | O4: =IF(Bahrein!$D$11="",0,SUM('Bahrein:Arabie Saoudite'!$G$11)) -> 44 | Q4: =IF(O4="",0,(RANK(O4,$O$4:$O$23))) -> 1
A5: HAMILTON Lewis | B5: MERCEDES | D5: 5 | G5: =IFERROR(CHOOSE(D5,25,18,15,12,10,8,6,4,2,1)+(F5=1),0) -> 10 | I5: MERCEDES | J5: =SUM('Bahrein:Arabie Saoudite'!$G$5:$G$7) -> 38 | K5: =J4-J5 -> 49 | L5: =IF(J5="",0,(RANK(J5,$J$4:$J$13))) -> 2 | N5: PEREZ Sergio | O5: =IF(Bahrein!$D$12="",0,SUM('Bahrein:Arabie Saoudite'!$G$12)) -> 43 | P5: =O4-O5 -> 1 | Q5: =IF(O5=0,0,(RANK(O5,$O$4:$O$23))) -> 2
A6: RUSSELL George | D6: 4 | G6: =IFERROR(CHOOSE(D6,25,18,15,12,10,8,6,4,2,1)+(F6=1),0) -> 12 | I6: ASTON MARTIN | J6: =SUM('Bahrein:Arabie Saoudite'!$G$14:$G$16) -> 38 | K6: =J5-J6 -> 0 | L6: 2 | N6: ALONSO Fernando | O6: =IF(Bahrein!$D$14="",0,SUM('Bahrein:Arabie Saoudite'!$G$14)) -> 30 | P6: =O5-O6 -> 13 | Q6: 3
G7: 0 | I7: FERRARI | J7: =SUM('Bahrein:Arabie Saoudite'!$G$8:$G$10) -> 26 | K7: 12 | L7: 4 | N7: HAMILTON Lewis | O7: =IF(Bahrein!$D$5="",0,SUM('Bahrein:Arabie Saoudite'!$G$5)) -> 20 | P7: 10 | Q7: =IF(O7=0,0,(RANK(O7,$O$4:$O$23))) -> 4
A8: SAINZ.Jr Carlos | B8: FERRARI | D8: 6 | G8: 8 | I8: ALPINE F1 TEAM | J8: =SUM('Bahrein:Arabie Saoudite'!$G$20:$G$22) -> 8 | K8: 18 | L8: 5 | N8: SAINZ.Jr Carlos | O8: =IF(Bahrein!$D$8="",0,SUM('Bahrein:Arabie Saoudite'!$G$8)) -> 20 | P8: 0 | Q8: 4
A9: LECLERC Charles | D9: 7 | G9: 6 | I9: ALFA ROMÉO | J9: =SUM('Bahrein:Arabie Saoudite'!$G$32:$G$34) -> 4 | K9: 4 | L9: 6 | N9: RUSSEL George | O9: =IF(Bahrein!$D$6="",0,SUM('Bahrein:Arabie Saoudite'!$G$6)) -> 18 | P9: 2 | Q9: 6
G10: 0 | I10: HAAS | J10: =SUM('Bahrein:Arabie Saoudite'!$G$26:$G$28) -> 1 | K10: 3 | L10: 7 | N10: STROLL Lance | O10: =IF(Bahrein!$D$15="",0,SUM('Bahrein:Arabie Saoudite'!$G$15)) -> 8 | P10: 10 | Q10: 7
A11: VERSTAPPEN Max | B11: RED BULL RACING | D11: 2 | F11: 1 | G11: 19 | I11: WILLIAMS | J11: =SUM('Bahrein:Arabie Saoudite'!$G$17:$G$19) -> 1 | K11: 0 | L11: 7 | N11: LECLERC Charles | O11: =IF(Bahrein!$D$9="",0,SUM('Bahrein:Arabie Saoudite'!$G$9)) -> 6 | P11: 2 | Q11: 8
A12: PEREZ Sergio | D12: 1 | E12: 1 | G12: 25 | I12: Mc LAREN | J12: =SUM('Bahrein:Arabie Saoudite'!$G$29:$G$31) -> 0 | K12: 1 | L12: 9 | N12: GASLY Pierre | O12: =IF(Bahrein!$D$20="",0,SUM('Bahrein:Arabie Saoudite'!$G$20)) -> 4 | P12: 2 | Q12: 9
G13: 0 | I13: ALPHA TAURI | J13: =SUM('Bahrein:Arabie Saoudite'!$G$23:$G$25) -> 0 | K13: 0 | L13: 9 | N13: OCON Sebastian | O13: =IF(Bahrein!$D$21="",0,SUM('Bahrein:Arabie Saoudite'!$G$21)) -> 4 | P13: 0 | Q13: 9
A14: ALONSO Fernando | B14: ASTON MARTIN | D14: 3 | G14: 15 | N14: BOTTAS Valtteri | O14: =IF(Bahrein!$D$32="",0,SUM('Bahrein:Arabie Saoudite'!$G$32)) -> 4 | P14: 0 | Q14: 9
A15: STROLL Lance | D15: OUT | G15: 0 | N15: NORRIS Lando | O15: =IF(Bahrein!$D$21="",0,SUM('Bahrein:Arabie Saoudite'!$G$21)) -> 4 | P15: 0 | Q15: 9
G16: 0 | N16: ALBON Alexander | O16: =IF(Bahrein!$D$17="",0,SUM('Bahrein:Arabie Saoudite'!$G$17)) -> 1 | P16: 3 | Q16: 13
A17: ALBON Alexander | B17: WILLIAMS | D17: OUT | G17: 0 | N17: MAGNUSSEN Kevin | O17: =IF(Bahrein!$D$26="",0,SUM('Bahrein:Arabie Saoudite'!$G$26)) -> 1 | P17: 0 | Q17: 13
A18: SARGEANT Logan | D18: 16 | G18: 0 | N18: DEVRIES Nyck | O18: =IF(Bahrein!$D$24="",0,SUM('Bahrein:Arabie Saoudite'!$G$24)) -> 0 | P18: 1 | Q18: 0
G19: 0 | N19: GUANYU Zhou | O19: =IF(Bahrein!$D$33="",0,SUM('Bahrein:Arabie Saoudite'!$G$33)) -> 0 | P19: 0 | Q19: 0
A20: GASLY Pierre | B20: ALPINE F1 TEAM | D20: 9 | G20: 2 | N20: SARGEANT Logan | O20: =IF(Bahrein!$D$18="",0,SUM('Bahrein:Arabie Saoudite'!$G$18)) -> 0 | P20: 0 | Q20: 0
A21: OCON Sebastian | D21: 8 | G21: 4 | N21: TSUNODA Yoki | O21: =IF(Bahrein!$D$23="",0,SUM('Bahrein:Arabie Saoudite'!$G$23)) -> 0 | P21: 0 | Q21: 0
G22: 0 | N22: PIASTRI Oscar | O22: =IF(Bahrein!$D$31="",0,SUM(Bahrein:'Arabie Saoudite'!$G$31)) -> 0 | P22: 0 | Q22: 0
A23: TSUNODA Yoki | B23: ALPHA TAURI | D23: 11 | G23: 0 | N23: HULKENBERG Nico | O23: =IF(Bahrein!$D$27="",0,SUM('Bahrein:Arabie Saoudite'!$G$27)) -> 0 | P23: 0 | Q23: 0
A24: DEVRIES Nyck | D24: 14 | G24: 0
G25: 0
A26: MAGNUSSEN Kevin | B26: HAAS | D26: 10 | G26: 1
A27: HULKENBERG Nico | D27: 12 | G27: 0
G28: 0
A29: NORRIS Lando | B29: Mc LAREN | D29: 17 | G29: 0
A30: PIASTRI Oscar | D30: 15 | G30: 0
G31: 0
A32: BOTTAS Valtteri | B32: ALFA ROMÉO | D32: 18 | G32: 0
A33: GUANYU Zhou | D33: 13 | G33: =IFERROR(CHOOSE(D33,25,18,15,12,10,8,6,4,2,1)+(F33=1),0) -> 0
G34: 0

Sheet Australie
A1: MELBOURNE - 2 AVRIL 2023
A3: PILOTES | B3: ECURIES | C3: VOITURES | D3: Finish | E3: Pôle | F3: Pt tour | G3: Points | I3: ÉCURIES | J3: Points | K3: Écart | L3: Rang | N3: Noms | O3: Points | P3: Écart | Q3: Rang
I4: RED BULL RACING | J4: =IF(SUM('Arabie Saoudite'!$G$5:$G$34)=0,0,SUM(Bahrein:Australie!$G$11:$G$13)) -> 123 | L4: =IF(J4="",0,(RANK(J4,$J$4:$J$13))) -> 1 | N4: VERSTAPPEN Max | O4: =IF('Arabie Saoudite'!$D$11="",0,SUM(Bahrein:Australie!$G$11)) -> 69 | Q4: =IF(O4="",0,(RANK(O4,$O$4:$O$23))) -> 1
A5: HAMILTON Lewis | B5: MERCEDES | D5: 2 | G5: =IFERROR(CHOOSE(D5,25,18,15,12,10,8,6,4,2,1)+(F5=1),0) -> 18 | I5: ASTON MARTIN | J5: =IF(SUM('Arabie Saoudite'!$G$5:$G$34)=0,0,SUM(Bahrein:Australie!$G$14:$G$16)) -> 65 | K5: =J4-J5 -> 58 | L5: =IF(J5="",0,(RANK(J5,$J$4:$J$13))) -> 2 | N5: PEREZ Sergio | O5: =IF('Arabie Saoudite'!$D$12="",0,SUM(Bahrein:Australie!$G$12)) -> 54 | P5: =O4-O5 -> 15 | Q5: =IF(O5="",0,(RANK(O5,$O$4:$O$23))) -> 2
A6: RUSSELL George | D6: OUT | G6: =IFERROR(CHOOSE(D6,25,18,15,12,10,8,6,4,2,1)+(F6=1),0) -> 0 | I6: MERCEDES | J6: =IF(SUM('Arabie Saoudite'!$G$5:$G$34)=0,0,SUM(Bahrein:Australie!$G$5:$G$7)) -> 56 | K6: =J5-J6 -> 9 | L6: 3 | N6: ALONSO Fernando | O6: =IF('Arabie Saoudite'!$D$14="",0,SUM(Bahrein:Australie!$G$14)) -> 45 | P6: =O5-O6 -> 9 | Q6: 3
G7: 0 | I7: FERRARI | J7: =IF(SUM('Arabie Saoudite'!$G$5:$G$34)=0,0,SUM(Bahrein:Australie!$G$8:$G$10)) -> 26 | K7: 30 | L7: 4 | N7: HAMILTON Lewis | O7: =IF('Arabie Saoudite'!$D$5="",0,SUM(Bahrein:Australie!$G$5)) -> 38 | P7: 7 | Q7: 4
A8: SAINZ.Jr Carlos | B8: FERRARI | D8: 12 | G8: 0 | I8: Mc LAREN | J8: =IF(SUM('Arabie Saoudite'!$G$5:$G$34)=0,0,SUM(Bahrein:Australie!$G$29:$G$31)) -> 12 | K8: 14 | L8: 5 | N8: STROLL Lance | O8: =IF('Arabie Saoudite'!$D$15="",0,SUM(Bahrein:Australie!$G$15)) -> 20 | P8: 18 | Q8: 5
A9: LECLERC Charles | D9: OUT | G9: 0 | I9: ALPINE F1 TEAM | J9: =IF(SUM('Arabie Saoudite'!$G$5:$G$34)=0,0,SUM(Bahrein:Australie!$G$20:$G$22)) -> 8 | K9: 4 | L9: 6 | N9: SAINZ.Jr Carlos | O9: =IF('Arabie Saoudite'!$D$8="",0,SUM(Bahrein:Australie!$G$8)) -> 20 | P9: 0 | Q9: 5
G10: 0 | I10: HAAS | J10: =IF(SUM('Arabie Saoudite'!$G$5:$G$34)=0,0,SUM(Bahrein:Australie!$G$26:$G$28)) -> 7 | K10: 1 | L10: 7 | N10: RUSSEL George | O10: =IF('Arabie Saoudite'!$D$6="",0,SUM(Bahrein:Australie!$G$6)) -> 18 | P10: 2 | Q10: 7
A11: VERSTAPPEN Max | B11: RED BULL RACING | D11: 1 | E11: 1 | G11: 25 | I11: ALFA ROMÉO | J11: =IF(SUM('Arabie Saoudite'!$G$5:$G$34)=0,0,SUM(Bahrein:Australie!$G$32:$G$34)) -> 6 | K11: 1 | L11: 8 | N11: NORRIS Lando | O11: =IF('Arabie Saoudite'!$D$29="",0,SUM(Bahrein:Australie!$G$29)) -> 8 | P11: 10 | Q11: 8
A12: PEREZ Sergio | D12: 5 | F12: 1 | G12: 11 | I12: ALPHA TAURI | J12: =IF(SUM('Arabie Saoudite'!$G$5:$G$34)=0,0,SUM(Bahrein:Australie!$G$23:$G$25)) -> 1 | K12: 5 | L12: 9 | N12: HULKENBERG Nico | O12: =IF('Arabie Saoudite'!$D$27="",0,SUM(Bahrein:Australie!$G$27)) -> 6 | P12: 2 | Q12: 9
G13: 0 | I13: WILLIAMS | J13: =IF(SUM('Arabie Saoudite'!$G$5:$G$34)=0,0,SUM(Bahrein:Australie!$G$17:$G$19)) -> 1 | K13: 0 | L13: 9 | N13: LECLERC Charles | O13: =IF('Arabie Saoudite'!$D$9="",0,SUM(Bahrein:Australie!$G$9)) -> 6 | P13: 0 | Q13: 9
A14: ALONSO Fernando | B14: ASTON MARTIN | D14: 3 | G14: 15 | N14: BOTTAS Valtteri | O14: =IF('Arabie Saoudite'!$D$32="",0,SUM(Bahrein:Australie!$G$32)) -> 4 | P14: 2 | Q14: 11
A15: STROLL Lance | D15: 4 | G15: 12 | N15: PIASTRI Oscar | O15: =IF('Arabie Saoudite'!$D$30="",0,SUM(Bahrein:Australie!$G$30)) -> 4 | P15: 0 | Q15: 11
G16: 0 | N16: OCON Sebastian | O16: =IF('Arabie Saoudite'!$D$21="",0,SUM(Bahrein:Australie!$G$21)) -> 4 | P16: 0 | Q16: 11
A17: ALBON Alexander | B17: WILLIAMS | D17: OUT | G17: 0 | N17: GASLY Pierre | O17: =IF('Arabie Saoudite'!$D$20="",0,SUM(Bahrein:Australie!$G$20)) -> 4 | P17: 0 | Q17: 11
A18: SARGEANT Logan | D18: OUT | G18: 0 | N18: GUANYU Zhou | O18: =IF('Arabie Saoudite'!$D$33="",0,SUM(Bahrein:Australie!$G$33)) -> 2 | P18: 2 | Q18: 15
G19: 0 | N19: MAGNUSSEN Kevin | O19: =IF('Arabie Saoudite'!$D$11="",0,SUM(Bahrein:Australie!$G$26)) -> 1 | P19: 1 | Q19: 16
A20: GASLY Pierre | B20: ALPINE F1 TEAM | D20: OUT | G20: 0 | N20: TSUNODA Yoki | O20: =IF('Arabie Saoudite'!$D$23="",0,SUM(Bahrein:Australie!$G$23)) -> 1 | P20: 0 | Q20: 16
A21: OCON Sebastian | D21: OUT | G21: 0 | N21: ALBON Alexander | O21: =IF('Arabie Saoudite'!$D$17="",0,SUM(Bahrein:Australie!$G$17)) -> 1 | P21: 0 | Q21: 16
G22: 0 | N22: SARGEANT Logan | O22: =IF('Arabie Saoudite'!$D$18="",0,SUM(Bahrein:Australie!$G$18)) -> 0 | P22: 1 | Q22: 19
A23: TSUNODA Yoki | B23: ALPHA TAURI | D23: 10 | G23: 1 | N23: DEVRIES Nyck | O23: =IF('Arabie Saoudite'!$D$24="",0,SUM(Bahrein:Australie!$G$24)) -> 0 | P23: 0 | Q23: 19
A24: DEVRIES Nyck | D24: OUT | G24: 0
G25: 0
A26: MAGNUSSEN Kevin | B26: HAAS | D26: OUT | G26: 0
A27: HULKENBERG Nico | D27: 7 | G27: 6
G28: 0
A29: NORRIS Lando | B29: Mc LAREN | D29: 6 | G29: 8
A30: PIASTRI Oscar | D30: 8 | G30: 4
G31: 0
A32: BOTTAS Valtteri | B32: ALFA ROMÉO | D32: 11 | G32: 0
A33: GUANYU Zhou | D33: 9 | G33: 2
G34: 0

Sheet Azerbaïdjan
A1: BAKOU - 30 AVRIL 2023
A3: PILOTES | B3: ECURIES | C3: VOITURES | D3: Finish | E3: Pôle | F3: Pt tour | G3: Points | H3: Sprint | I3: ÉCURIES | J3: Points | K3: Écart | L3: Rang | N3: Noms | O3: Points | P3: Écart | Q3: Rang
I4: RED BULL RACING | J4: =IF(SUM(Australie!$G$5:$G$34)=0,0,SUM(Bahrein:Azerbaïdjan!$G$11:$G$13)) -> 180 | L4: =IF(J4="",0,(RANK(J4,$J$4:$J$13))) -> 1 | N4: VERSTAPPEN Max | O4: =IF(Australie!$D$11="",0,SUM(Bahrein:Azerbaïdjan!$G$11)) -> 93 | Q4: =IF(O4="",0,(RANK(O4,$O$4:$O$23))) -> 1
A5: HAMILTON Lewis | B5: MERCEDES | D5: 6 | G5: =IFERROR(CHOOSE(D5,25,18,15,12,10,8,6,4,2,1),0)+IFERROR(CHOOSE(H5,8,7,6,5,4,3,2,1),0)+F5 -> 10 | H5: 7 | I5: ASTON MARTIN | J5: =IF(SUM(Australie!$G$5:$G$34)=0,0,SUM(Bahrein:Azerbaïdjan!$G$14:$G$16)) -> 87 | K5: =J4-J5 -> 93 | L5: =IF(J5="",0,(RANK(J5,$J$4:$J$13))) -> 2 | N5: PEREZ Sergio | O5: =IF(Australie!$D$12="",0,SUM(Bahrein:Azerbaïdjan!$G$12)) -> 87 | P5: =O4-O5 -> 6 | Q5: =IF(O5="",0,(RANK(O5,$O$4:$O$23))) -> 2
A6: RUSSELL George | D6: 8 | F6: 1 | G6: =IFERROR(CHOOSE(D6,25,18,15,12,10,8,6,4,2,1),0)+IFERROR(CHOOSE(H6,8,7,6,5,4,3,2,1),0)+F6 -> 10 | H6: 4 | I6: MERCEDES | J6: =IF(SUM(Australie!$G$5:$G$34)=0,0,SUM(Bahrein:Azerbaïdjan!$G$5:$G$7)) -> 76 | K6: =J5-J6 -> 11 | L6: 3 | N6: ALONSO Fernando | O6: =IF(Australie!$D$14="",0,SUM(Bahrein:Azerbaïdjan!$G$14)) -> 60 | P6: =O5-O6 -> 27 | Q6: 3
G7: 0 | I7: FERRARI | J7: =IF(SUM(Australie!$G$5:$G$34)=0,0,SUM(Bahrein:Azerbaïdjan!$G$8:$G$10)) -> 62 | K7: 14 | L7: 4 | N7: HAMILTON Lewis | O7: =IF(Australie!$D$5="",0,SUM(Bahrein:Azerbaïdjan!$G$5)) -> 48 | P7: 12 | Q7: 4
A8: SAINZ.Jr Carlos | B8: FERRARI | D8: 5 | G8: 14 | H8: 5 | I8: Mc LAREN | J8: =IF(SUM(Australie!$G$5:$G$34)=0,0,SUM(Bahrein:Azerbaïdjan!$G$29:$G$31)) -> 14 | K8: 48 | L8: 5 | N8: SAINZ.Jr Carlos | O8: =IF(Australie!$D$8="",0,SUM(Bahrein:Azerbaïdjan!$G$8)) -> 34 | P8: 14 | Q8: 5
A9: LECLERC Charles | D9: 3 | E9: 1 | G9: 22 | H9: 2 | I9: ALPINE F1 TEAM | J9: =IF(SUM(Australie!$G$5:$G$34)=0,0,SUM(Bahrein:Azerbaïdjan!$G$20:$G$22)) -> 8 | K9: 6 | L9: 6 | N9: RUSSEL George | O9: =IF(Australie!$D$6="",0,SUM(Bahrein:Azerbaïdjan!$G$6)) -> 28 | P9: 6 | Q9: 6
G10: 0 | I10: HAAS | J10: =IF(SUM(Australie!$G$5:$G$34)=0,0,SUM(Bahrein:Azerbaïdjan!$G$26:$G$28)) -> 7 | K10: 1 | L10: 7 | N10: LECLERC Charles | O10: =IF(Australie!$D$9="",0,SUM(Bahrein:Azerbaïdjan!$G$9)) -> 28 | P10: 0 | Q10: 6
A11: VERSTAPPEN Max | B11: RED BULL RACING | D11: 2 | G11: 24 | H11: 3 | I11: ALFA ROMÉO | J11: =IF(SUM(Australie!$G$5:$G$34)=0,0,SUM(Bahrein:Azerbaïdjan!$G$32:$G$34)) -> 6 | K11: 1 | L11: 8 | N11: STROLL Lance | O11: =IF(Australie!$D$15="",0,SUM(Bahrein:Azerbaïdjan!$G$15)) -> 27 | P11: 1 | Q11: 8
A12: PEREZ Sergio | D12: 1 | G12: 33 | H12: 1 | I12: ALPHA TAURI | J12: =IF(SUM(Australie!$G$5:$G$34)=0,0,SUM(Bahrein:Azerbaïdjan!$G$23:$G$25)) -> 2 | K12: 4 | L12: 9 | N12: NORRIS Lando | O12: =IF(Australie!$D$29="",0,SUM(Bahrein:Azerbaïdjan!$G$29)) -> 10 | P12: 17 | Q12: 9
G13: 0 | I13: WILLIAMS | J13: =IF(SUM(Australie!$G$5:$G$34)=0,0,SUM(Bahrein:Azerbaïdjan!$G$17:$G$19)) -> 1 | K13: 1 | L13: 10 | N13: PIASTRI Oscar | O13: =IF(Australie!$D$30="",0,SUM(Bahrein:Azerbaïdjan!$G$30)) -> 4 | P13: 6 | Q13: 10
A14: ALONSO Fernando | B14: ASTON MARTIN | D14: 4 | G14: 15 | H14: 6 | N14: GASLY Pierre | O14: =IF(Australie!$D$20="",0,SUM(Bahrein:Azerbaïdjan!$G$20)) -> 4 | P14: 0 | Q14: 10
A15: STROLL Lance | D15: 7 | G15: 7 | H15: 8 | N15: BOTTAS Valtteri | O15: =IF(Australie!$D$32="",0,SUM(Bahrein:Azerbaïdjan!$G$32)) -> 4 | P15: 0 | Q15: 10
G16: 0 | N16: OCON Sebastian | O16: =IF(Australie!$D$21="",0,SUM(Bahrein:Azerbaïdjan!$G$21)) -> 4 | P16: 0 | Q16: 10
A17: ALBON Alexander | B17: WILLIAMS | D17: 12 | G17: 0 | N17: GUANYU Zhou | O17: =IF(Australie!$D$33="",0,SUM(Bahrein:Azerbaïdjan!$G$33)) -> 2 | P17: 2 | Q17: 14
A18: SARGEANT Logan | D18: 16 | G18: 0 | N18: TSUNODA Yoki | O18: =IF(Australie!$D$23="",0,SUM(Bahrein:Azerbaïdjan!$G$23)) -> 2 | P18: 0 | Q18: 14
G19: 0 | N19: HULKENBERG Nico | O19: =IF(Australie!$D$26="",0,SUM(Bahrein:Azerbaïdjan!$G$26)) -> 1 | P19: 1 | Q19: 16
A20: GASLY Pierre | B20: ALPINE F1 TEAM | D20: 14 | G20: 0 | N20: ALBON Alexander | O20: =IF(Australie!$D$17="",0,SUM(Bahrein:Azerbaïdjan!$G$17)) -> 1 | P20: 0 | Q20: 16
A21: OCON Sebastian | D21: 15 | G21: 0 | N21: MAGNUSSEN Kevin | O21: =IF(Australie!$D$26="",0,SUM(Bahrein:Azerbaïdjan!$G$26)) -> 1 | P21: 0 | Q21: 16
G22: 0 | N22: DEVRIES Nyck | O22: =IF(Australie!$D$24="",0,SUM(Bahrein:Azerbaïdjan!$G$24)) -> 0 | P22: 1 | Q22: 19
A23: TSUNODA Yoki | B23: ALPHA TAURI | D23: 10 | G23: 1 | N23: SARGEANT Logan | O23: =IF(Australie!$D$18="",0,SUM(Bahrein:Azerbaïdjan!$G$18)) -> 0 | P23: 0 | Q23: 19
A24: DEVRIES Nyck | G24: 0
G25: 0
A26: MAGNUSSEN KEVIN | B26: HAAS | D26: 13 | G26: 0
A27: HULKENBERG Nico | D27: 17 | G27: 0
G28: 0
A29: NORRIS Lando | B29: Mc LAREN | D29: 9 | G29: 2
A30: PIASTRI Oscar | D30: 11 | G30: 0
G31: 0
A32: BOTTAS Valtteri | B32: ALFA ROMÉO | D32: 18 | G32: 0
A33: GUANYU Zhou | G33: 0
G34: 0

Sheet Miami
A1: MIAMI - 7 MAI 2023
A3: PILOTES | B3: ECURIES | C3: VOITURES | D3: Finish | E3: Pôle | F3: Pt tour | G3: Points | I3: ÉCURIES | J3: Points | K3: Écart | L3: Rang | N3: Noms | O3: Points | P3: Écart | Q3: Rang
I4: RED BULL RACING | J4: =IF(SUM(Azerbaïdjan!$G$5:$G$35)=0,0,SUM(Bahrein:Miami!$G$11:$G$13)) -> 224 | L4: =IF(J4="",0,(RANK(J4,$J$4:$J$13))) -> 1 | N4: VERSTAPPEN Max | O4: =IF(Azerbaïdjan!$G$11="",0,SUM(Bahrein:Miami!$G$11)) -> 119 | Q4: =IF(O4="",0,(RANK(O4,$O$4:$O$23))) -> 1
A5: HAMILTON Lewis | B5: MERCEDES | D5: 6 | G5: =IFERROR(CHOOSE(D5,25,18,15,12,10,8,6,4,2,1)+(F5=1),0) -> 8 | I5: ASTON MARTIN | J5: =IF(SUM(Azerbaïdjan!$G$5:$G$35)=0,0,SUM(Bahrein:Miami!$G$14:$G$16)) -> 102 | K5: =J4-J5 -> 122 | L5: =IF(J5="",0,(RANK(J5,$J$4:$J$13))) -> 2 | N5: PEREZ Sergio | O5: =IF(Azerbaïdjan!$G$12="",0,SUM(Bahrein:Miami!$G$12)) -> 105 | P5: =O4-O5 -> 14 | Q5: =IF(O5="",0,(RANK(O5,$O$4:$O$23))) -> 2
A6: RUSSELL George | D6: 4 | G6: =IFERROR(CHOOSE(D6,25,18,15,12,10,8,6,4,2,1)+(F6=1),0) -> 12 | I6: MERCEDES | J6: =IF(SUM(Azerbaïdjan!$G$5:$G$35)=0,0,SUM(Bahrein:Miami!$G$5:$G$7)) -> 96 | K6: =J5-J6 -> 6 | L6: 3 | N6: ALONSO Fernando | O6: =IF(Azerbaïdjan!$G$14="",0,SUM(Bahrein:Miami!$G$14)) -> 75 | P6: =O5-O6 -> 30 | Q6: 3
G7: 0 | I7: FERRARI | J7: =IF(SUM(Azerbaïdjan!$G$5:$G$35)=0,0,SUM(Bahrein:Miami!$G$8:$G$10)) -> 78 | K7: =J6-J7 -> 18 | L7: 4 | N7: HAMILTON Lewis | O7: =IF(Azerbaïdjan!$G$5="",0,SUM(Bahrein:Miami!$G$5)) -> 56 | P7: 19 | Q7: 4
A8: SAINZ.Jr Carlos | B8: FERRARI | D8: 5 | G8: 10 | I8: Mc LAREN | J8: =IF(SUM(Azerbaïdjan!$G$5:$G$35)=0,0,SUM(Bahrein:Miami!$G$29:$G$31)) -> 14 | K8: 64 | L8: 5 | N8: SAINZ.Jr Carlos | O8: =IF(Azerbaïdjan!$G$8="",0,SUM(Bahrein:Miami!$G$8)) -> 44 | P8: 12 | Q8: 5
A9: LECLERC Charles | D9: 7 | G9: 6 | I9: ALPINE F1 TEAM | J9: =IF(SUM(Azerbaïdjan!$G$5:$G$35)=0,0,SUM(Bahrein:Miami!$G$20:$G$22)) -> 14 | K9: 0 | L9: 5 | N9: RUSSEL George | O9: =IF(Azerbaïdjan!$G$6="",0,SUM(Bahrein:Miami!$G$6)) -> 40 | P9: 4 | Q9: 6
G10: 0 | I10: HAAS | J10: =IF(SUM(Azerbaïdjan!$G$5:$G$35)=0,0,SUM(Bahrein:Miami!$G$26:$G$28)) -> 8 | K10: 6 | L10: 7 | N10: LECLERC Charles | O10: =IF(Azerbaïdjan!$G$9="",0,SUM(Bahrein:Miami!$G$9)) -> 34 | P10: 6 | Q10: 7
A11: VERSTAPPEN Max | B11: RED BULL RACING | D11: 1 | F11: 1 | G11: 26 | I11: ALFA ROMÉO | J11: =IF(SUM(Azerbaïdjan!$G$5:$G$35)=0,0,SUM(Bahrein:Miami!$G$32:$G$34)) -> 6 | K11: 2 | L11: 8 | N11: STROLL Lance | O11: =IF(Azerbaïdjan!$G$15="",0,SUM(Bahrein:Miami!$G$15)) -> 27 | P11: 7 | Q11: 8
A12: PEREZ Sergio | D12: 2 | E12: 1 | G12: 18 | I12: ALPHA TAURI | J12: =IF(SUM(Azerbaïdjan!$G$5:$G$35)=0,0,SUM(Bahrein:Miami!$G$23:$G$25)) -> 2 | K12: 4 | L12: 9 | N12: NORRIS Lando | O12: =IF(Azerbaïdjan!$G$29="",0,SUM(Bahrein:Miami!$G$29)) -> 10 | P12: 17 | Q12: 9
G13: 0 | I13: WILLIAMS | J13: =IF(SUM(Azerbaïdjan!$G$5:$G$35)=0,0,SUM(Bahrein:Miami!$G$17:$G$19)) -> 1 | K13: 1 | L13: 10 | N13: GASLY Pierre | O13: =IF(Azerbaïdjan!$G$20="",0,SUM(Bahrein:Miami!$G$20)) -> 8 | P13: 2 | Q13: 10
A14: ALONSO Fernando | B14: ASTON MARTIN | D14: 3 | G14: 15 | N14: HULKENBERG Nico | O14: =IF(Azerbaïdjan!$G$27="",0,SUM(Bahrein:Miami!$G$27)) -> 6 | P14: 2 | Q14: 11
A15: STROLL Lance | D15: 12 | G15: 0 | N15: OCON Sebastian | O15: =IF(Azerbaïdjan!$G$21="",0,SUM(Bahrein:Miami!$G$21)) -> 6 | P15: 0 | Q15: 11
G16: 0 | N16: PIASTRI Oscar | O16: =IF(Azerbaïdjan!$G$30="",0,SUM(Bahrein:Miami!$G$30)) -> 4 | P16: 2 | Q16: 13
A17: ALBON Alexander | B17: WILLIAMS | D17: 14 | G17: 0 | N17: BOTTAS Valtteri | O17: =IF(Azerbaïdjan!$G$32="",0,SUM(Bahrein:Miami!$G$32)) -> 4 | P17: 0 | Q17: 13
A18: SARGEANT Logan | D18: 20 | G18: 0 | N18: TSUNODA Yoki | O18: =IF(Azerbaïdjan!$G$23="",0,SUM(Bahrein:Miami!$G$23)) -> 2 | P18: 2 | Q18: 15
G19: 0 | N19: MAGNUSSEN Kevin | O19: =IF(Azerbaïdjan!$G$26="",0,SUM(Bahrein:Miami!$G$26)) -> 2 | P19: 0 | Q19: 15
A20: GASLY Pierre | B20: ALPINE F1 TEAM | D20: 8 | G20: 4 | N20: GUANYU Zhou | O20: =IF(Azerbaïdjan!$G$33="",0,SUM(Bahrein:Miami!$G$33)) -> 2 | P20: 0 | Q20: 15
A21: OCON Sebastian | D21: 9 | G21: 2 | N21: ALBON Alexander | O21: =IF(Azerbaïdjan!$G$17="",0,SUM(Bahrein:Miami!$G$17)) -> 1 | P21: 1 | Q21: 18
G22: 0 | N22: DEVRIES Nyck | O22: =IF(Azerbaïdjan!$G$24="",0,SUM(Bahrein:Miami!$G$24)) -> 0 | P22: 1 | Q22: 19
A23: TSUNODA Yoki | B23: ALPHA TAURI | D23: 11 | G23: 0 | N23: SARGEANT Logan | O23: =IF(Azerbaïdjan!$G$18="",0,SUM(Bahrein:Miami!$G$18)) -> 0 | P23: 0 | Q23: 19
A24: DEVRIES Nyck | D24: 18 | G24: 0
G25: 0
A26: MAGNUSSEN Kevin | B26: HAAS | D26: 10 | G26: 1
A27: HULKENBERG Nico | D27: 15 | G27: 0
G28: 0
A29: NORRIS Lando | B29: Mc LAREN | D29: 17 | G29: 0
A30: PIASTRI Oscar | D30: 19 | G30: 0
G31: 0
A32: BOTTAS Valtteri | B32: ALFA ROMÉO | D32: 13 | G32: 0
A33: GUANYU Zhou | D33: 16 | G33: 0
G34: 0

Sheet ItalieIm
A1: IMOLA - 21 MAI 2023
A3: PILOTES | B3: ECURIES | C3: VOITURES | D3: Finish | E3: Pôle | F3: Pt tour | G3: Points | I3: ÉCURIES | J3: Points | K3: Écart | L3: Rang | N3: Noms | O3: Points | P3: Écart | Q3: Rang
I4: RED BULL RACING | J4: =IF(SUM(Miami!$G$5:$G$34)=0,0,SUM(Bahrein:ItalieIm!$G$11:$G$13)) -> 224 | L4: =IF(J4="",0,(RANK(J4,$J$4:$J$13))) -> 1 | N4: VERSTAPPEN Max | O4: =IF(Miami!$G$11="",0,SUM(Bahrein:ItalieIm!$G$11)) -> 119 | Q4: =IF(O4="",0,(RANK(O4,$O$4:$O$23))) -> 1
A5: HAMILTON Lewis | B5: MERCEDES | G5: =IFERROR(CHOOSE(D5,25,18,15,12,10,8,6,4,2,1)+(F5=1),0) -> 0 | I5: ASTON MARTIN | J5: =IF(SUM(Miami!$G$5:$G$34)=0,0,SUM(Bahrein:ItalieIm!$G$14:$G$16)) -> 102 | K5: =J4-J5 -> 122 | L5: =IF(J5="",0,(RANK(J5,$J$4:$J$13))) -> 2 | N5: PEREZ Sergio | O5: =IF(Miami!$G$12="",0,SUM(Bahrein:ItalieIm!$G$12)) -> 105 | P5: =O4-O5 -> 14 | Q5: =IF(O5="",0,(RANK(O5,$O$4:$O$23))) -> 2
A6: RUSSELL George | G6: =IFERROR(CHOOSE(D6,25,18,15,12,10,8,6,4,2,1)+(F6=1),0) -> 0 | I6: MERCEDES | J6: =IF(SUM(Miami!$G$5:$G$34)=0,0,SUM(Bahrein:ItalieIm!$G$5:$G$7)) -> 96 | K6: =J5-J6 -> 6 | L6: 3 | N6: ALONSO Fernando | O6: =IF(Miami!$G$14="",0,SUM(Bahrein:ItalieIm!$G$14)) -> 75 | P6: =O5-O6 -> 30 | Q6: 3
G7: 0 | I7: FERRARI | J7: =IF(SUM(Miami!$G$5:$G$34)=0,0,SUM(Bahrein:ItalieIm!$G$8:$G$10)) -> 78 | K7: 18 | L7: 4 | N7: HAMILTON Lewis | O7: =IF(Miami!$G$5="",0,SUM(Bahrein:ItalieIm!$G$5)) -> 56 | P7: 19 | Q7: 4
A8: SAINZ.Jr Carlos | B8: FERRARI | G8: 0 | I8: ALPINE F1 TEAM | J8: =IF(SUM(Miami!$G$5:$G$34)=0,0,SUM(Bahrein:ItalieIm!$G$20:$G$22)) -> 14 | K8: 64 | L8: 5 | N8: SAINZ.Jr Carlos | O8: =IF(Miami!$G$8="",0,SUM(Bahrein:ItalieIm!$G$8)) -> 44 | P8: 12 | Q8: 5
A9: LECLERC Charles | G9: 0 | I9: Mc LAREN | J9: =IF(SUM(Miami!$G$5:$G$34)=0,0,SUM(Bahrein:ItalieIm!$G$29:$G$31)) -> 14 | K9: 0 | L9: 5 | N9: RUSSEL George | O9: =IF(Miami!$G$6="",0,SUM(Bahrein:ItalieIm!$G$6)) -> 40 | P9: 4 | Q9: 6
G10: 0 | I10: HAAS | J10: =IF(SUM(Miami!$G$5:$G$34)=0,0,SUM(Bahrein:ItalieIm!$G$26:$G$28)) -> 8 | K10: 6 | L10: 7 | N10: LECLERC Charles | O10: =IF(Miami!$G$9="",0,SUM(Bahrein:ItalieIm!$G$9)) -> 34 | P10: 6 | Q10: 7
A11: VERSTAPPEN Max | B11: RED BULL RACING | G11: 0 | I11: ALFA ROMÉO | J11: =IF(SUM(Miami!$G$5:$G$34)=0,0,SUM(Bahrein:ItalieIm!$G$32:$G$34)) -> 6 | K11: 2 | L11: 8 | N11: STROLL Lance | O11: =IF(Miami!$G$15="",0,SUM(Bahrein:ItalieIm!$G$15)) -> 27 | P11: 7 | Q11: 8
A12: PEREZ Sergio | G12: 0 | I12: ALPHA TAURI | J12: =IF(SUM(Miami!$G$5:$G$34)=0,0,SUM(Bahrein:ItalieIm!$G$23:$G$25)) -> 2 | K12: 4 | L12: 9 | N12: NORRIS Lando | O12: =IF(Miami!$G$29="",0,SUM(Bahrein:ItalieIm!$G$29)) -> 10 | P12: 17 | Q12: 9
G13: 0 | I13: WILLIAMS | J13: =IF(SUM(Miami!$G$5:$G$34)=0,0,SUM(Bahrein:ItalieIm!$G$17:$G$19)) -> 1 | K13: 1 | L13: 10 | N13: GASLY Pierre | O13: =IF(Miami!$G$20="",0,SUM(Bahrein:ItalieIm!$G$20)) -> 8 | P13: 2 | Q13: 10
A14: ALONSO Fernando | B14: ASTON MARTIN | G14: 0 | N14: HULKENBERG Nico | O14: =IF(Miami!$G$27="",0,SUM(Bahrein:ItalieIm!$G$27)) -> 6 | P14: 2 | Q14: 11
A15: STROLL Lance | G15: 0 | N15: OCON Sebastian | O15: =IF(Miami!$G$21="",0,SUM(Bahrein:ItalieIm!$G$21)) -> 6 | P15: 0 | Q15: 11
G16: 0 | N16: PIASTRI Oscar | O16: =IF(Miami!$G$30="",0,SUM(Bahrein:ItalieIm!$G$30)) -> 4 | P16: 2 | Q16: 13
A17: ALBON Alexander | B17: WILLIAMS | G17: =IFERROR(CHOOSE(D17,25,18,15,12,10,8,6,4,2,1)+(F17=1),0) -> 0 | N17: BOTTAS Valtteri | O17: =IF(Miami!$G$32="",0,SUM(Bahrein:ItalieIm!$G$32)) -> 4 | P17: 0 | Q17: 13
A18: SARGEANT Logan | G18: 0 | N18: TSUNODA Yoki | O18: =IF(Miami!$G$23="",0,SUM(Bahrein:ItalieIm!$G$23)) -> 2 | P18: 2 | Q18: 15
G19: 0 | N19: MAGNUSSEN Kevin | O19: =IF(Miami!$G$26="",0,SUM(Bahrein:ItalieIm!$G$26)) -> 2 | P19: 0 | Q19: 15
A20: GASLY Pierre | B20: ALPINE F1 TEAM | G20: 0 | N20: GUANYU Zhou | O20: =IF(Miami!$G$33="",0,SUM(Bahrein:ItalieIm!$G$33)) -> 2 | P20: 0 | Q20: 15
A21: OCON Sebastian | G21: 0 | N21: DEVRIES Nyck | O21: =IF(Miami!$G$24="",0,SUM(Bahrein:ItalieIm!$G$24)) -> 0 | P21: 2 | Q21: 18
G22: 0 | N22: SARGEANT Logan | O22: =IF(Miami!$G$18="",0,SUM(Bahrein:ItalieIm!$G$18)) -> 0 | P22: 0 | Q22: 18
A23: TSUNODA Yoki | B23: ALPHA TAURI | G23: 0 | N23: ALBON Alexander | O23: =IF(Miami!$G$18="",0,SUM(Bahrein:ItalieIm!$G$18)) -> 0 | P23: 0 | Q23: 18
A24: DEVRIES Nyck | G24: 0
G25: 0
A26: MAGNUSSEN Kevin | B26: HAAS | G26: 0
A27: HULKENBERG Nico | G27: 0
G28: 0
A29: NORRIS Lando | B29: Mc LAREN | G29: 0
A30: PIASTRI Oscar | G30: 0
G31: 0
A32: BOTTAS Valtteri | B32: ALFA ROMÉO | G32: 0
A33: GUANYU Zhou | G33: 0
G34: 0

Sheet Monaco
A1: MONACO - 28 MAI 2023
A3: PILOTES | B3: ECURIES | C3: VOITURES | D3: Finish | E3: Pôle | F3: Pt tour | G3: Points | I3: ÉCURIES | J3: Points | K3: Écart | L3: Rang | N3: Noms | O3: Points | P3: Écart | Q3: Rang
I4: RED BULL RACING | J4: =IF(SUM(ItalieIm!$G$5:$G$34)=0,0,SUM(Bahrein:Monaco!$G$11:$G$13)) -> 0 | L4: =IF(J4="",0,(RANK(J4,$J$4:$J$13))) -> 1 | N4: VERSTAPPEN Max | O4: =IF(Miami!$D$11="",0,SUM(Bahrein:Monaco!$G$11)) -> 119 | Q4: =IF(O4="",0,(RANK(O4,$O$4:$O$23))) -> 1
A5: HAMILTON Lewis | B5: MERCEDES | G5: =IFERROR(CHOOSE(D5,25,18,15,12,10,8,6,4,2,1)+(F5=1),0) -> 0 | I5: ASTON MARTIN | J5: =IF(SUM(ItalieIm!$G$5:$G$34)=0,0,SUM(Bahrein:Monaco!$G$14:$G$16)) -> 0 | K5: =J4-J5 -> 0 | L5: =IF(J5="",0,(RANK(J5,$J$4:$J$13))) -> 1 | N5: PEREZ Sergio | O5: =IF(Miami!$D$12="",0,SUM(Bahrein:Monaco!$G$12)) -> 105 | P5: =O4-O5 -> 14 | Q5: =IF(O5="",0,(RANK(O5,$O$4:$O$23))) -> 2
A6: RUSSELL George | G6: =IFERROR(CHOOSE(D6,25,18,15,12,10,8,6,4,2,1)+(F6=1),0) -> 0 | I6: MERCEDES | J6: =IF(SUM(ItalieIm!$G$5:$G$34)=0,0,SUM(Bahrein:Monaco!$G$5:$G$7)) -> 0 | K6: =J5-J6 -> 0 | L6: 1 | N6: ALONSO Fernando | O6: =IF(Miami!$D$14="",0,SUM(Bahrein:Monaco!$G$14)) -> 75 | P6: =O5-O6 -> 30 | Q6: 3
G7: 0 | I7: FERRARI | J7: =IF(SUM(ItalieIm!$G$5:$G$34)=0,0,SUM(Bahrein:Monaco!$G$8:$G$10)) -> 0 | K7: 0 | L7: 1 | N7: HAMILTON Lewis | O7: =IF(Miami!$D$5="",0,SUM(Bahrein:Monaco!$G$5)) -> 56 | P7: 19 | Q7: 4
A8: SAINZ.Jr Carlos | B8: FERRARI | G8: 0 | I8: WILLIAMS | J8: =IF(SUM(ItalieIm!$G$5:$G$34)=0,0,SUM(Bahrein:Monaco!$G$17:$G$19)) -> 0 | K8: 0 | L8: 1 | N8: SAINZ.Jr Carlos | O8: =IF(Miami!$D$8="",0,SUM(Bahrein:Monaco!$G$8)) -> 44 | P8: 12 | Q8: 5
A9: LECLERC Charles | G9: 0 | I9: Mc LAREN | J9: =IF(SUM(ItalieIm!$G$5:$G$34)=0,0,SUM(Bahrein:Monaco!$G$29:$G$31)) -> 0 | K9: 0 | L9: 1 | N9: RUSSEL George | O9: =IF(Miami!$D$6="",0,SUM(Bahrein:Monaco!$G$6)) -> 40 | P9: 4 | Q9: 6
G10: 0 | I10: ALPINE F1 TEAM | J10: =IF(SUM(ItalieIm!$G$5:$G$34)=0,0,SUM(Bahrein:Monaco!$G$20:$G$22)) -> 0 | K10: 0 | L10: 1 | N10: LECLERC Charles | O10: =IF(Miami!$D$9="",0,SUM(Bahrein:Monaco!$G$9)) -> 34 | P10: 6 | Q10: 7
A11: VERSTAPPEN Max | B11: RED BULL RACING | G11: 0 | I11: HAAS | J11: =IF(SUM(ItalieIm!$G$5:$G$34)=0,0,SUM(Bahrein:Monaco!$G$26:$G$28)) -> 0 | K11: 0 | L11: 1 | N11: STROLL Lance | O11: =IF(Miami!$D$15="",0,SUM(Bahrein:Monaco!$G$15)) -> 27 | P11: 7 | Q11: 8
A12: PEREZ Sergio | G12: 0 | I12: ALFA ROMÉO | J12: =IF(SUM(ItalieIm!$G$5:$G$34)=0,0,SUM(Bahrein:Monaco!$G$32:$G$34)) -> 0 | K12: 0 | L12: 1 | N12: NORRIS Lando | O12: =IF(Miami!$D$29="",0,SUM(Bahrein:Monaco!$G$29)) -> 10 | P12: 17 | Q12: 9
G13: 0 | I13: ALPHA TAURI | J13: =IF(SUM(ItalieIm!$G$5:$G$34)=0,0,SUM(Bahrein:Monaco!$G$23:$G$25)) -> 0 | K13: 0 | L13: 1 | N13: GASLY Pierre | O13: =IF(Miami!$D$20="",0,SUM(Bahrein:Monaco!$G$20)) -> 8 | P13: 2 | Q13: 10
A14: ALONSO Fernando | B14: ASTON MARTIN | G14: 0 | N14: HULKENBERG Nico | O14: =IF(Miami!$D$27="",0,SUM(Bahrein:Monaco!$G$27)) -> 6 | P14: 2 | Q14: 11
A15: STROLL Lance | G15: 0 | N15: OCON Sebastian | O15: =IF(Miami!$D$21="",0,SUM(Bahrein:Monaco!$G$21)) -> 6 | P15: 0 | Q15: 11
G16: 0 | N16: BOTTAS Valtteri | O16: =IF(Miami!$D$32="",0,SUM(Bahrein:Monaco!$G$32)) -> 4 | P16: 2 | Q16: 13
A17: ALBON Alexander | B17: WILLIAMS | G17: 0 | N17: PIASTRI Oscar | O17: =IF(Miami!$D$30="",0,SUM(Bahrein:Monaco!$G$30)) -> 4 | P17: 0 | Q17: 13
A18: SARGEANT Logan | G18: 0 | N18: GUANYU Zhou | O18: =IF(Miami!$D$33="",0,SUM(Bahrein:Monaco!$G$33)) -> 2 | P18: 2 | Q18: 15
G19: 0 | N19: MAGNUSSEN Kevin | O19: =IF(Miami!$D$26="",0,SUM(Bahrein:Monaco!$G$26)) -> 2 | P19: 0 | Q19: 15
A20: GASLY Pierre | B20: ALPINE F1 TEAM | G20: 0 | N20: TSUNODA Yoki | O20: =IF(Miami!$D$23="",0,SUM(Bahrein:Monaco!$G$23)) -> 2 | P20: 0 | Q20: 15
A21: OCON Sebastian | G21: 0 | N21: ALBON Alexander | O21: =IF(Miami!$D$17="",0,SUM(Bahrein:Monaco!$G$17)) -> 1 | P21: 1 | Q21: 18
G22: 0 | N22: DEVRIES Nyck | O22: =IF(Miami!$D$24="",0,SUM(Bahrein:Monaco!$G$24)) -> 0 | P22: 1 | Q22: 19
A23: TSUNODA Yoki | B23: ALPHA TAURI | G23: 0 | N23: SARGEANT Logan | O23: =IF(Miami!$D$18="",0,SUM(Bahrein:Monaco!$G$18)) -> 0 | P23: 0 | Q23: 19
A24: DEVRIES Nyck | G24: 0
G25: 0
A26: MAGNUSSEN Kevin | B26: HAAS | G26: 0
A27: HULKENBERG Nico | G27: 0
G28: 0
A29: NORRIS Lando | B29: Mc LAREN | G29: 0
A30: PIASTRI Oscar | G30: 0
G31: 0
A32: BOTTAS Valtteri | B32: ALFA ROMÉO | G32: 0
A33: GUANYU Zhou | G33: 0
G34: 0

Sheet Espagne
A1: BARCELONE - 4 JUIN 2023
A3: PILOTES | B3: ECURIES | C3: VOITURES | D3: Finish | E3: Pôle | F3: Pt tour | G3: Points | I3: ÉCURIES | J3: Points | K3: Écart | L3: Rang | N3: Noms | O3: Points | P3: Écart | Q3: Rang
I4: MERCEDES | J4: =IF(SUM(Monaco!$G$5:$G$7)=0,0,SUM(Bahrein:Espagne!$G$5:$G$7)) -> 0 | L4: =IF(J4="",0,(RANK(J4,$J$4:$J$13))) -> 1 | N4: VERSTAPPEN Max | O4: =IF(Monaco!$D$11="",0,SUM(Bahrein:Espagne!$G$11)) -> 0 | Q4: =IF(O4="",0,(RANK(O4,$O$4:$O$23))) -> 1
A5: HAMILTON Lewis | B5: MERCEDES | G5: =IFERROR(CHOOSE(D5,25,18,15,12,10,8,6,4,2,1)+(F5=1),0) -> 0 | I5: Mc LAREN | J5: =IF(SUM(Monaco!$G$5:$G$7)=0,0,SUM(Bahrein:Espagne!$G$29:$G$31)) -> 0 | K5: =J4-J5 -> 0 | L5: =IF(J5="",0,(RANK(J5,$J$4:$J$13))) -> 1 | N5: PEREZ Sergio | O5: =IF(Monaco!$D$12="",0,SUM(Bahrein:Espagne!$G$12)) -> 0 | P5: =O4-O5 -> 0 | Q5: =IF(O5="",0,(RANK(O5,$O$4:$O$23))) -> 1
A6: RUSSELL George | G6: =IFERROR(CHOOSE(D6,25,18,15,12,10,8,6,4,2,1)+(F6=1),0) -> 0 | I6: FERRARI | J6: =IF(SUM(Monaco!$G$5:$G$7)=0,0,SUM(Bahrein:Espagne!$G$8:$G$10)) -> 0 | K6: =J5-J6 -> 0 | L6: 1 | N6: ALONSO Fernando | O6: =IF(Monaco!$D$14="",0,SUM(Bahrein:Espagne!$G$14)) -> 0 | P6: =O5-O6 -> 0 | Q6: 1
G7: 0 | I7: WILLIAMS | J7: =IF(SUM(Monaco!$G$5:$G$7)=0,0,SUM(Bahrein:Espagne!$G$17:$G$19)) -> 0 | K7: 0 | L7: 1 | N7: HAMILTON Lewis | O7: =IF(Monaco!$D$5="",0,SUM(Bahrein:Espagne!$G$5)) -> 0 | P7: 0 | Q7: 1
A8: SAINZ.Jr Carlos | B8: FERRARI | G8: 0 | I8: ALFA ROMÉO | J8: =IF(SUM(Monaco!$G$5:$G$7)=0,0,SUM(Bahrein:Espagne!$G$32:$G$34)) -> 0 | K8: 0 | L8: 1 | N8: SAINZ.Jr Carlos | O8: =IF(Monaco!$D$8="",0,SUM(Bahrein:Espagne!$G$8)) -> 0 | P8: 0 | Q8: 1
A9: LECLERC Charles | G9: 0 | I9: RED BULL RACING | J9: =IF(SUM(Monaco!$G$5:$G$7)=0,0,SUM(Bahrein:Espagne!$G$11:$G$13)) -> 0 | K9: 0 | L9: 1 | N9: STROLL Lance | O9: =IF(Monaco!$D$15="",0,SUM(Bahrein:Espagne!$G$15)) -> 0 | P9: 0 | Q9: 1
G10: 0 | I10: ASTON MARTIN | J10: =IF(SUM(Monaco!$G$5:$G$7)=0,0,SUM(Bahrein:Espagne!$G$14:$G$16)) -> 0 | K10: 0 | L10: 1 | N10: RUSSEL George | O10: =IF(Monaco!$D$6="",0,SUM(Bahrein:Espagne!$G$6)) -> 0 | P10: 0 | Q10: 1
A11: VERSTAPPEN Max | B11: RED BULL RACING | G11: 0 | I11: ALPINE F1 TEAM | J11: =IF(SUM(Monaco!$G$5:$G$7)=0,0,SUM(Bahrein:Espagne!$G$20:$G$22)) -> 0 | K11: 0 | L11: 1 | N11: NORRIS Lando | O11: =IF(Monaco!$D$29="",0,SUM(Bahrein:Espagne!$G$29)) -> 0 | P11: 0 | Q11: 1
A12: PEREZ Sergio | G12: 0 | I12: ALPHA TAURI | J12: =IF(SUM(Monaco!$G$5:$G$7)=0,0,SUM(Bahrein:Espagne!$G$23:$G$25)) -> 0 | K12: 0 | L12: 1 | N12: LECLERC Charles | O12: =IF(Monaco!$D$9="",0,SUM(Bahrein:Espagne!$G$9)) -> 0 | P12: 0 | Q12: 1
G13: 0 | I13: HAAS | J13: =IF(SUM(Monaco!$G$5:$G$7)=0,0,SUM(Bahrein:Espagne!$G$26:$G$28)) -> 0 | K13: 0 | L13: 1 | N13: HULKENBERG Nico | O13: =IF(Monaco!$D$27="",0,SUM(Bahrein:Espagne!$G$27)) -> 0 | P13: 0 | Q13: 1
A14: ALONSO Fernando | B14: ASTON MARTIN | G14: 0 | N14: BOTTAS Valtteri | O14: =IF(Monaco!$D$32="",0,SUM(Bahrein:Espagne!$G$32)) -> 0 | P14: 0 | Q14: 1
A15: STROLL Lance | G15: 0 | N15: GASLY Pierre | O15: =IF(Monaco!$D$20="",0,SUM(Bahrein:Espagne!$G$20)) -> 0 | P15: 0 | Q15: 1
G16: 0 | N16: OCON Sebastian | O16: =IF(Monaco!$D$21="",0,SUM(Bahrein:Espagne!$G$21)) -> 0 | P16: 0 | Q16: 1
A17: ALBON Alexander | B17: WILLIAMS | G17: 0 | N17: PIASTRI Oscar | O17: =IF(Monaco!$D$30="",0,SUM(Bahrein:Espagne!$G$30)) -> 0 | P17: 0 | Q17: 1
A18: SARGEANT Logan | G18: 0 | N18: GUANYU Zhou | O18: =IF(Monaco!$D$33="",0,SUM(Bahrein:Espagne!$G$33)) -> 0 | P18: 0 | Q18: 1
G19: 0 | N19: ALBON Alexander | O19: =IF(Monaco!$D$17="",0,SUM(Bahrein:Espagne!$G$17)) -> 0 | P19: 0 | Q19: 1
A20: GASLY Pierre | B20: ALPINE F1 TEAM | G20: 0 | N20: MAGNUSSUN Kevin | O20: =IF(Monaco!$D$26="",0,SUM(Bahrein:Espagne!$G$26)) -> 0 | P20: 0 | Q20: 1
A21: OCON Sebastian | G21: 0 | N21: TSUNODA Yoki | O21: =IF(Monaco!$D$23="",0,SUM(Bahrein:Espagne!$G$23)) -> 0 | P21: 0 | Q21: 1
G22: 0 | N22: DEVRIES Nyck | O22: =IF(Monaco!$D$24="",0,SUM(Bahrein:Espagne!$G$24)) -> 0 | P22: 0 | Q22: 1
A23: TSUNODA Yoki | B23: ALPHA TAURI | G23: 0 | N23: SARGEANT Logan | O23: =IF(Monaco!$D$18="",0,SUM(Bahrein:Espagne!$G$18)) -> 0 | P23: 0 | Q23: 1
A24: DEVRIES Nyck | G24: 0
G25: 0
A26: MAGNUSSEN Kevin | B26: HAAS | G26: 0
A27: HULKENBERG Nico | G27: 0
G28: 0
A29: NORRIS Lando | B29: Mc LAREN | G29: 0
A30: PIASTRI Oscar | G30: 0
G31: 0
A32: BOTTAS Valtteri | B32: ALFA ROMÉO | G32: 0
A33: GUANYU Zhou | G33: 0
G34: 0

Sheet Canada
A1: MONTRÉAL - 18 JUIN 2023
A3: PILOTES | B3: ECURIES | C3: VOITURES | D3: Finish | E3: Pôle | F3: Pt tour | G3: Points | I3: ÉCURIES | J3: Points | K3: Écart | L3: Rang | N3: Noms | O3: Points | P3: Écart | Q3: Rang
I4: MERCEDES | J4: =IF(SUM(Espagne!$G$5:$G$34)=0,0,SUM(Bahrein:Canada!$G$5:$G$7)) -> 0 | L4: =IF(J4="",0,(RANK(J4,$J$4:$J$13))) -> 1 | N4: VERSTAPPEN Max | O4: =IF(Espagne!$D$11="",0,SUM(Bahrein:Canada!$G$11)) -> 0 | Q4: =IF(O4="",0,(RANK(O4,$O$4:$O$23))) -> 1
A5: HAMILTON Lewis | B5: MERCEDES | G5: =IFERROR(CHOOSE(D5,25,18,15,12,10,8,6,4,2,1)+(F5=1),0) -> 0 | I5: Mc LAREN | J5: =IF(SUM(Espagne!$G$5:$G$34)=0,0,SUM(Bahrein:Canada!$G$29:$G$31)) -> 0 | K5: =J4-J5 -> 0 | L5: =IF(J5="",0,(RANK(J5,$J$4:$J$13))) -> 1 | N5: PEREZ Sergio | O5: =IF(Espagne!$D$12="",0,SUM(Bahrein:Canada!$G$12)) -> 0 | P5: =O4-O5 -> 0 | Q5: =IF(O5="",0,(RANK(O5,$O$4:$O$23))) -> 1
A6: RUSSELL George | G6: =IFERROR(CHOOSE(D6,25,18,15,12,10,8,6,4,2,1)+(F6=1),0) -> 0 | I6: FERRARI | J6: =IF(SUM(Espagne!$G$5:$G$34)=0,0,SUM(Bahrein:Canada!$G$8:$G$10)) -> 0 | K6: =J5-J6 -> 0 | L6: 1 | N6: ALONSO Fernando | O6: =IF(Espagne!$D$14="",0,SUM(Bahrein:Canada!$G$14)) -> 0 | P6: =O5-O6 -> 0 | Q6: 1
G7: 0 | I7: WILLIAMS | J7: =IF(SUM(Espagne!$G$5:$G$34)=0,0,SUM(Bahrein:Canada!$G$17:$G$19)) -> 0 | K7: 0 | L7: 1 | N7: HAMILTON Lewis | O7: =IF(Espagne!$D$5="",0,SUM(Bahrein:Canada!$G$5)) -> 0 | P7: 0 | Q7: 1
A8: SAINZ.Jr Carlos | B8: FERRARI | G8: 0 | I8: ALFA ROMÉO | J8: =IF(SUM(Espagne!$G$5:$G$34)=0,0,SUM(Bahrein:Canada!$G$32:$G$34)) -> 0 | K8: 0 | L8: 1 | N8: SAINZ.Jr Carlos | O8: =IF(Espagne!$D$8="",0,SUM(Bahrein:Canada!$G$8)) -> 0 | P8: 0 | Q8: 1
A9: LECLERC Charles | G9: 0 | I9: RED BULL RACING | J9: =IF(SUM(Espagne!$G$5:$G$34)=0,0,SUM(Bahrein:Canada!$G$11:$G$13)) -> 0 | K9: 0 | L9: 1 | N9: STROLL Lance | O9: =IF(Espagne!$D$15="",0,SUM(Bahrein:Canada!$G$15)) -> 0 | P9: 0 | Q9: 1
G10: 0 | I10: ASTON MARTIN | J10: =IF(SUM(Espagne!$G$5:$G$34)=0,0,SUM(Bahrein:Canada!$G$14:$G$16)) -> 0 | K10: 0 | L10: 1 | N10: RUSSEL George | O10: =IF(Espagne!$D$5="",0,SUM(Bahrein:Canada!$G$5)) -> 0 | P10: 0 | Q10: 1
A11: VERSTAPPEN Max | B11: RED BULL RACING | G11: 0 | I11: ALPINE F1 TEAM | J11: =IF(SUM(Espagne!$G$5:$G$34)=0,0,SUM(Bahrein:Canada!$G$20:$G$22)) -> 0 | K11: 0 | L11: 1 | N11: NORRIS Lando | O11: =IF(Espagne!$D$29="",0,SUM(Bahrein:Canada!$G$29)) -> 0 | P11: 0 | Q11: 1
A12: PEREZ Sergio | G12: 0 | I12: ALPHA TAURI | J12: =IF(SUM(Espagne!$G$5:$G$34)=0,0,SUM(Bahrein:Canada!$G$23:$G$25)) -> 0 | K12: 0 | L12: 1 | N12: LECLERC Charles | O12: =IF(Espagne!$D$9="",0,SUM(Bahrein:Canada!$G$9)) -> 0 | P12: 0 | Q12: 1
G13: 0 | I13: HAAS | J13: =IF(SUM(Espagne!$G$5:$G$34)=0,0,SUM(Bahrein:Canada!$G$26:$G$28)) -> 0 | K13: 0 | L13: 1 | N13: HULKENBERG Nico | O13: =IF(Espagne!$D$27="",0,SUM(Bahrein:Canada!$G$27)) -> 0 | P13: 0 | Q13: 1
A14: ALONSO Fernando | B14: ASTON MARTIN | G14: 0 | N14: BOTTAS Valtteri | O14: =IF(Espagne!$D$32="",0,SUM(Bahrein:Canada!$G$32)) -> 0 | P14: 0 | Q14: 1
A15: STROLL Lance | G15: 0 | N15: GASLY Pierre | O15: =IF(Espagne!$D$20="",0,SUM(Bahrein:Canada!$G$20)) -> 0 | P15: 0 | Q15: 1
G16: 0 | N16: OCON Sebastian | O16: =IF(Espagne!$D$21="",0,SUM(Bahrein:Canada!$G$21)) -> 0 | P16: 0 | Q16: 1
A17: ALBON Alexander | B17: WILLIAMS | G17: 0 | N17: PIASTRI Oscar | O17: =IF(Espagne!$D$30="",0,SUM(Bahrein:Canada!$G$30)) -> 0 | P17: 0 | Q17: 1
A18: SARGEANT Logan | G18: 0 | N18: GUANYU Zhou | O18: =IF(Espagne!$D$33="",0,SUM(Bahrein:Canada!$G$33)) -> 0 | P18: 0 | Q18: 1
G19: 0 | N19: ALBON Alexander | O19: =IF(Espagne!$D$17="",0,SUM(Bahrein:Canada!$G$17)) -> 0 | P19: 0 | Q19: 1
A20: GASLY Pierre | B20: ALPINE F1 TEAM | G20: 0 | N20: MAGNUSSEN Kevin | O20: =IF(Espagne!$D$26="",0,SUM(Bahrein:Canada!$G$26)) -> 0 | P20: 0 | Q20: 1
A21: OCON Sebastian | G21: 0 | N21: TSUNODA Yoki | O21: =IF(Espagne!$D$23="",0,SUM(Bahrein:Canada!$G$23)) -> 0 | P21: 0 | Q21: 1
G22: 0 | N22: DEVRIES Nyck | O22: =IF(Espagne!$D$24="",0,SUM(Bahrein:Canada!$G$24)) -> 0 | P22: 0 | Q22: 1
A23: TSUNODA Yoki | B23: ALPHA TAURI | G23: 0 | N23: SARGEANT Logan | O23: =IF(Espagne!$D$18="",0,SUM(Bahrein:Canada!$G$18)) -> 0 | P23: 0 | Q23: 1
A24: DEVRIES Nyck | G24: 0
G25: 0
A26: MAGNUSSEN Kevin | B26: HAAS | G26: 0
A27: HULKENBERG Nico | G27: 0
G28: 0
A29: NORRIS Lando | B29: Mc LAREN | G29: 0
A30: PIASTRI Oscar | G30: 0
G31: 0
A32: BOTTAS Valtteri | B32: ALFA ROMÉO | G32: 0
A33: GUANYU Zhou | G33: 0
G34: 0

Sheet Autriche
A1: SPIELBERG - 2 JUILLET 2023
A3: PILOTES | B3: ECURIES | C3: VOITURES | D3: Finish | E3: Pôle | F3: Pt tour | G3: Points | H3: Sprint | I3: ÉCURIES | J3: Points | K3: Écart | L3: Rang | N3: Noms | O3: Points | P3: Écart | Q3: Rang
I4: MERCEDES | J4: =IF(SUM(Canada!$G$5:$G$34)=0,0,SUM(Bahrein:Autriche!$G$5:$G$7)) -> 0 | L4: =IF(J4="",0,(RANK(J4,$J$4:$J$13))) -> 1 | N4: VERSTAPPEN Max | O4: =IF(Canada!$D$11="",0,SUM(Bahrein:Autriche!$G$11)) -> 0 | Q4: =IF(O4="",0,(RANK(O4,$O$4:$O$23))) -> 1
A5: HAMILTON Lewis | B5: MERCEDES | G5: =IFERROR(CHOOSE(D5,25,18,15,12,10,8,6,4,2,1),0)+IFERROR(CHOOSE(H5,8,7,6,5,4,3,2,1),0)+F5 -> 0 | I5: Mc LAREN | J5: =IF(SUM(Canada!$G$5:$G$34)=0,0,SUM(Bahrein:Autriche!$G$29:$G$31)) -> 0 | K5: =J4-J5 -> 0 | L5: =IF(J5="",0,(RANK(J5,$J$4:$J$13))) -> 1 | N5: PEREZ Sergio | O5: =IF(Canada!$D$12=0,0,SUM(Bahrein:Autriche!$G$12)) -> 0 | P5: =O4-O5 -> 0 | Q5: =IF(O5="",0,(RANK(O5,$O$4:$O$23))) -> 1
A6: RUSSELL George | G6: =IFERROR(CHOOSE(D6,25,18,15,12,10,8,6,4,2,1),0)+IFERROR(CHOOSE(H6,8,7,6,5,4,3,2,1),0)+F6 -> 0 | I6: FERRARI | J6: =IF(SUM(Canada!$G$5:$G$34)=0,0,SUM(Bahrein:Autriche!$G$8:$G$10)) -> 0 | K6: =J5-J6 -> 0 | L6: 1 | N6: ALONSO Fernando | O6: =IF(Canada!$D$14=0,0,SUM(Bahrein:Autriche!$G$14)) -> 0 | P6: =O5-O6 -> 0 | Q6: 1
G7: 0 | I7: WILLIAMS | J7: =IF(SUM(Canada!$G$5:$G$34)=0,0,SUM(Bahrein:Autriche!$G$17:$G$19)) -> 0 | K7: 0 | L7: 1 | N7: HAMILTON Lewis | O7: =IF(Canada!$D$5=0,0,SUM(Bahrein:Autriche!$G$5)) -> 0 | P7: 0 | Q7: 1
A8: SAINZ.Jr Carlos | B8: FERRARI | G8: 0 | I8: ALFA ROMÉO | J8: =IF(SUM(Canada!$G$5:$G$34)=0,0,SUM(Bahrein:Autriche!$G$31:$G$33)) -> 0 | K8: 0 | L8: 1 | N8: SAINZ.Jr Carlos | O8: =IF(Canada!$D$8=0,0,SUM(Bahrein:Autriche!$G$8)) -> 0 | P8: 0 | Q8: 1
A9: LECLERC Charles | G9: 0 | I9: RED BULL RACING | J9: =IF(SUM(Canada!$G$5:$G$34)=0,0,SUM(Bahrein:Autriche!$G$11:$G$13)) -> 0 | K9: 0 | L9: 1 | N9: STROLL Lance | O9: =IF(Canada!$D$15=0,0,SUM(Bahrein:Autriche!$G$15)) -> 0 | P9: 0 | Q9: 1
G10: 0 | I10: ASTON MARTIN | J10: =IF(SUM(Canada!$G$5:$G$34)=0,0,SUM(Bahrein:Autriche!$G$14:$G$16)) -> 0 | K10: 0 | L10: 1 | N10: RUSSEL George | O10: =IF(Canada!$D$6=0,0,SUM(Bahrein:Autriche!$G$6)) -> 0 | P10: 0 | Q10: 1
A11: VERSTAPPEN Max | B11: RED BULL RACING | G11: 0 | I11: ALPINE F1 TEAM | J11: =IF(SUM(Canada!$G$5:$G$34)=0,0,SUM(Bahrein:Autriche!$G$20:$G$22)) -> 0 | K11: 0 | L11: 1 | N11: NORRIS Lando | O11: =IF(Canada!$D$29=0,0,SUM(Bahrein:Autriche!$G$29)) -> 0 | P11: 0 | Q11: 1
A12: PEREZ Sergio | G12: 0 | I12: ALPHA TAURI | J12: =IF(SUM(Canada!$G$5:$G$34)=0,0,SUM(Bahrein:Autriche!$G$23:$G$25)) -> 0 | K12: 0 | L12: 1 | N12: LECLERC Charles | O12: =IF(Canada!$D$9=0,0,SUM(Bahrein:Autriche!$G$9)) -> 0 | P12: 0 | Q12: 1
G13: 0 | I13: HAAS | J13: =IF(SUM(Canada!$G$5:$G$34)=0,0,SUM(Bahrein:Autriche!$G$26:$G$28)) -> 0 | K13: 0 | L13: 1 | N13: HULKENBERG Nico | O13: =IF(Canada!$D$27=0,0,SUM(Bahrein:Autriche!$G$27)) -> 0 | P13: 0 | Q13: 1
A14: ALONSO Fernando | B14: ASTON MARTIN | G14: 0 | N14: BOTTAS Valtteri | O14: =IF(Canada!$D$32=0,0,SUM(Bahrein:Autriche!$G$32)) -> 0 | P14: 0 | Q14: 1
A15: STROLL Lance | G15: 0 | N15: GASLY Pierre | O15: =IF(Canada!$D$20=0,0,SUM(Bahrein:Autriche!$G$20)) -> 0 | P15: 0 | Q15: 1
G16: 0 | N16: OCON Sebastian | O16: =IF(Canada!$D$21=0,0,SUM(Bahrein:Autriche!$G$21)) -> 0 | P16: 0 | Q16: 1
A17: ALBON Alexander | B17: WILLIAMS | G17: 0 | N17: PIASTRI Oscar | O17: =IF(Canada!$D$30=0,0,SUM(Bahrein:Autriche!$F$30)) -> 0 | P17: 0 | Q17: 1
A18: SARGEANT Logan | G18: 0 | N18: GUANYU Zhou | O18: =IF(Canada!$D$33=0,0,SUM(Bahrein:Autriche!$G$33)) -> 0 | P18: 0 | Q18: 1
G19: 0 | N19: ALBON Alexander | O19: =IF(Canada!$D$17=0,0,SUM(Bahrein:Autriche!$G$17)) -> 0 | P19: 0 | Q19: 1
A20: GASLY Pierre | B20: ALPINE F1 TEAM | G20: 0 | N20: MAGNUSSEN Kevin | O20: =IF(Canada!$D$26=0,0,SUM(Bahrein:Autriche!$G$26)) -> 0 | P20: 0 | Q20: 1
A21: OCON Sebastian | G21: 0 | N21: TSUNODA Yoki | O21: =IF(Canada!$D$23=0,0,SUM(Bahrein:Autriche!$G$23)) -> 0 | P21: 0 | Q21: 1
G22: 0 | N22: SARGEANT Logan | O22: =IF(Canada!$D$18=0,0,SUM(Bahrein:Autriche!$G$18)) -> 0 | P22: 0 | Q22: 1
A23: TSUNODA Yoki | B23: ALPHA TAURI | G23: 0 | N23: DEVRIES Nyck | O23: =IF(Canada!$D$24=0,0,SUM(Bahrein:Autriche!$G$24)) -> 0 | P23: 0 | Q23: 1
A24: DEVRIES Nyck | G24: 0
G25: 0
A26: MAGNUSSEN Kevin | B26: HAAS | G26: 0
A27: HULKENBERG Nico | G27: 0
G28: 0
A29: NORRIS Lando | B29: Mc LAREN | G29: 0
A30: PIASTRI Oscar | G30: 0
G31: 0
A32: BOTTAS Valtteri | B32: ALFA ROMÉO | G32: 0
A33: GUANYU Zhou | G33: 0
G34: 0

Sheet GB
A1: SILVERSTONE - 9 JUILLET 2023
A3: PILOTES | B3: ECURIES | C3: VOITURES | D3: Finish | E3: Pôle | F3: Pt tour | G3: Points | I3: ÉCURIES | J3: Points | K3: Écart | L3: Rang | N3: Noms | O3: Points | P3: Écart | Q3: Rang
I4: MERCEDES | J4: =IF(SUM(Autriche!$G$5:$G$34)=0,0,SUM(Bahrein:GB!$G$5:$G$7)) -> 0 | L4: =IF(J4="",0,(RANK(J4,$J$4:$J$13))) -> 1 | N4: VERSTAPPEN Max | O4: =IF(Autriche!$D$11="",0,SUM(Bahrein:GB!$G$11)) -> 0 | Q4: =IF(O4="",0,(RANK(O4,$O$4:$O$23))) -> 1
A5: HAMILTON Lewis | B5: MERCEDES | G5: =IFERROR(CHOOSE(D5,25,18,15,12,10,8,6,4,2,1)+(F5=1),0) -> 0 | I5: Mc LAREN | J5: =IF(SUM(Autriche!$G$5:$G$34)=0,0,SUM(Bahrein:GB!$G$29:$G$31)) -> 0 | K5: =J4-J5 -> 0 | L5: =IF(J5="",0,(RANK(J5,$J$4:$J$13))) -> 1 | N5: PEREZ Sergio | O5: =IF(Autriche!$D$12="",0,SUM(Bahrein:GB!$G$12)) -> 0 | P5: =O4-O5 -> 0 | Q5: =IF(O5="",0,(RANK(O5,$O$4:$O$23))) -> 1
A6: RUSSELL George | G6: =IFERROR(CHOOSE(D6,25,18,15,12,10,8,6,4,2,1)+(F6=1),0) -> 0 | I6: FERRARI | J6: =IF(SUM(Autriche!$G$5:$G$34)=0,0,SUM(Bahrein:GB!$G$8:$G$10)) -> 0 | K6: =J5-J6 -> 0 | L6: 1 | N6: ALONSO Fernando | O6: =IF(Autriche!$D$14="",0,SUM(Bahrein:GB!$G$14)) -> 0 | P6: =O5-O6 -> 0 | Q6: 1
G7: 0 | I7: WILLIAMS | J7: =IF(SUM(Autriche!$G$5:$G$34)=0,0,SUM(Bahrein:GB!$G$17:$G$19)) -> 0 | K7: 0 | L7: 1 | N7: HAMILTON Lewis | O7: =IF(Autriche!$D$5="",0,SUM(Bahrein:GB!$G$5)) -> 0 | P7: 0 | Q7: 1
A8: SAINZ.Jr Carlos | B8: FERRARI | G8: 0 | I8: ALFA ROMÉO | J8: =IF(SUM(Autriche!$G$5:$G$34)=0,0,SUM(Bahrein:GB!$G$32:$G$34)) -> 0 | K8: 0 | L8: 1 | N8: SAINZ.Jr Carlos | O8: =IF(Autriche!$D$8="",0,SUM(Bahrein:GB!$G$8)) -> 0 | P8: 0 | Q8: 1
A9: LECLERC Charles | G9: 0 | I9: RED BULL RACING | J9: =IF(SUM(Autriche!$G$5:$G$34)=0,0,SUM(Bahrein:GB!$G$11:$G$13)) -> 0 | K9: 0 | L9: 1 | N9: STROLL Lance | O9: =IF(Autriche!$D$15="",0,SUM(Bahrein:GB!$G$15)) -> 0 | P9: 0 | Q9: 1
G10: 0 | I10: ASTON MARTIN | J10: =IF(SUM(Autriche!$G$5:$G$34)=0,0,SUM(Bahrein:GB!$G$14:$G$16)) -> 0 | K10: 0 | L10: 1 | N10: RUSSEL George | O10: =IF(Autriche!$D$6="",0,SUM(Bahrein:GB!$G$6)) -> 0 | P10: 0 | Q10: 1
A11: VERSTAPPEN Max | B11: RED BULL RACING | G11: 0 | I11: ALPINE F1 TEAM | J11: =IF(SUM(Autriche!$G$5:$G$34)=0,0,SUM(Bahrein:GB!$G$20:$G$22)) -> 0 | K11: 0 | L11: 1 | N11: NORRIS Lando | O11: =IF(Autriche!$D$29="",0,SUM(Bahrein:GB!$G$29)) -> 0 | P11: 0 | Q11: 1
A12: PEREZ Sergio | G12: 0 | I12: ALPHA TAURI | J12: =IF(SUM(Autriche!$G$5:$G$34)=0,0,SUM(Bahrein:GB!$G$23:$G$25)) -> 0 | K12: 0 | L12: 1 | N12: LECLERC Charles | O12: =IF(Autriche!$D$9="",0,SUM(Bahrein:GB!$G$9)) -> 0 | P12: 0 | Q12: 1
G13: 0 | I13: HAAS | J13: =IF(SUM(Autriche!$G$5:$G$34)=0,0,SUM(Bahrein:GB!$G$26:$G$28)) -> 0 | K13: 0 | L13: 1 | N13: HULKENBERG Nico | O13: =IF(Autriche!$D$27="",0,SUM(Bahrein:GB!$G$27)) -> 0 | P13: 0 | Q13: 1
A14: ALONSO Fernando | B14: ASTON MARTIN | G14: 0 | N14: BOTTAS Valtteri | O14: =IF(Autriche!$D$32="",0,SUM(Bahrein:GB!$G$32)) -> 0 | P14: 0 | Q14: 1
A15: STROLL Lance | G15: 0 | N15: GASLY Pierre | O15: =IF(Autriche!$D$20="",0,SUM(Bahrein:GB!$G$20)) -> 0 | P15: 0 | Q15: 1
G16: 0 | N16: OCON Sebastian | O16: =IF(Autriche!$D$21="",0,SUM(Bahrein:GB!$G$21)) -> 0 | P16: 0 | Q16: 1
A17: ALBON Alexander | B17: WILLIAMS | G17: 0 | N17: PIASTRI Oscar | O17: =IF(Autriche!$D$30="",0,SUM(Bahrein:GB!$G$30)) -> 0 | P17: 0 | Q17: 1
A18: SARGEANT Logan | G18: 0 | N18: GUANYU Zhou | O18: =IF(Autriche!$D$33="",0,SUM(Bahrein:GB!$G$33)) -> 0 | P18: 0 | Q18: 1
G19: 0 | N19: MAGNUSSEN Kevin | O19: =IF(Autriche!$D$26="",0,SUM(Bahrein:GB!$G$26)) -> 0 | P19: 0 | Q19: 1
A20: GASLY Pierre | B20: ALPINE F1 TEAM | G20: 0 | N20: ALBON Alexander | O20: =IF(Autriche!$D$17="",0,SUM(Bahrein:GB!$G$17)) -> 0 | P20: 0 | Q20: 1
A21: OCON Sebastian | G21: 0 | N21: TSUNODA Yoki | O21: =IF(Autriche!$D$23="",0,SUM(Bahrein:GB!$G$23)) -> 0 | P21: 0 | Q21: 1
G22: 0 | N22: SARGEANT Logan | O22: =IF(Autriche!$D$18="",0,SUM(Bahrein:GB!$G$18)) -> 0 | P22: 0 | Q22: 1
A23: TSUNODA Yoki | B23: ALPHA TAURI | G23: 0 | N23: DEVRIES Nyck | O23: =IF(Autriche!$D$24="",0,SUM(Bahrein:GB!$G$24)) -> 0 | P23: 0 | Q23: 1
A24: DEVRIES Nyck | G24: 0
G25: 0
A26: MAGNUSSEN Kevin | B26: HAAS | G26: 0
A27: HULKENBERG Nico | G27: 0
G28: 0
A29: NORRIS Lando | B29: Mc LAREN | G29: 0
A30: PIASTRI Oscar | G30: 0
G31: 0
A32: BOTTAS Valtteri | B32: ALFA ROMÉO | G32: 0
A33: GUANYU Zhou | G33: 0
G34: 0

Sheet Hongrie
A1: BUDAPEST - 23 JUILLET 2023
A3: PILOTES | B3: ECURIES | C3: VOITURES | D3: Finish | E3: Pôle | F3: Pt tour | G3: Points | I3: ÉCURIES | J3: Points | K3: Écart | L3: Rang | N3: Noms | O3: Points | P3: Écart | Q3: Rang
I4: MERCEDES | J4: =IF(SUM(GB!$G$5:$G$34)=0,0,SUM(Bahrein:Hongrie!$G$5:$G$7)) -> 0 | L4: =IF(J4="",0,(RANK(J4,$J$4:$J$13))) -> 1 | N4: VERSTAPPEN Max | O4: =IF(GB!$D$11="",0,SUM(Bahrein:Hongrie!$G$11)) -> 0 | Q4: =IF(O4="",0,(RANK(O4,$O$4:$O$23))) -> 1
A5: HAMILTON Lewis | B5: MERCEDES | G5: =IFERROR(CHOOSE(D5,25,18,15,12,10,8,6,4,2,1)+(F5=1),0) -> 0 | I5: Mc LAREN | J5: =IF(SUM(GB!$G$5:$G$34)=0,0,SUM(Bahrein:Hongrie!$G$29:$G$31)) -> 0 | K5: =J4-J5 -> 0 | L5: =IF(J5="",0,(RANK(J5,$J$4:$J$13))) -> 1 | N5: PEREZ Sergio | O5: =IF(GB!$D$12="",0,SUM(Bahrein:Hongrie!$G$12)) -> 0 | P5: =O4-O5 -> 0 | Q5: =IF(O5="",0,(RANK(O5,$O$4:$O$23))) -> 1
A6: RUSSELL GEORGE | G6: =IFERROR(CHOOSE(D6,25,18,15,12,10,8,6,4,2,1)+(F6=1),0) -> 0 | I6: FERRARI | J6: =IF(SUM(GB!$G$5:$G$34)=0,0,SUM(Bahrein:Hongrie!$G$8:$G$10)) -> 0 | K6: =J5-J6 -> 0 | L6: 1 | N6: ALONSO Fernando | O6: =IF(GB!$D$14="",0,SUM(Bahrein:Hongrie!$G$14)) -> 0 | P6: =O5-O6 -> 0 | Q6: 1
G7: 0 | I7: WILLIAMS | J7: =IF(SUM(GB!$G$5:$G$34)=0,0,SUM(Bahrein:Hongrie!$G$17:$G$19)) -> 0 | K7: 0 | L7: 1 | N7: HAMILTON Lewis | O7: =IF(GB!$D$5="",0,SUM(Bahrein:Hongrie!$G$5)) -> 0 | P7: 0 | Q7: 1
A8: SAINZ.Jr Carlos | B8: FERRARI | G8: 0 | I8: ALFA ROMÉO | J8: =IF(SUM(GB!$G$5:$G$34)=0,0,SUM(Bahrein:Hongrie!$G$32:$G$34)) -> 0 | K8: 0 | L8: 1 | N8: SAINZ.Jr Carlos | O8: =IF(GB!$D$8="",0,SUM(Bahrein:Hongrie!$G$8)) -> 0 | P8: 0 | Q8: 1
A9: LECLERC Charles | G9: 0 | I9: RED BULL RACING | J9: =IF(SUM(GB!$G$5:$G$34)=0,0,SUM(Bahrein:Hongrie!$G$11:$G$13)) -> 0 | K9: 0 | L9: 1 | N9: STROLL Lance | O9: =IF(GB!$D$15="",0,SUM(Bahrein:Hongrie!$G$15)) -> 0 | P9: 0 | Q9: 1
G10: 0 | I10: ASTON MARTIN | J10: =IF(SUM(GB!$G$5:$G$34)=0,0,SUM(Bahrein:Hongrie!$G$14:$G$16)) -> 0 | K10: 0 | L10: 1 | N10: SARGEANT Logan | O10: =IF(GB!$D$18="",0,SUM(Bahrein:Hongrie!$G$18)) -> 0 | P10: 0 | Q10: 1
A11: VERSTAPPEN Max | B11: RED BULL RACING | G11: 0 | I11: ALPINE F1 TEAM | J11: =IF(SUM(GB!$G$5:$G$34)=0,0,SUM(Bahrein:Hongrie!$G$20:$G$22)) -> 0 | K11: 0 | L11: 1 | N11: RUSSEL George | O11: =IF(GB!$D$6="",0,SUM(Bahrein:Hongrie!$G$6)) -> 0 | P11: 0 | Q11: 1
A12: PEREZ Sergio | G12: 0 | I12: ALPHA TAURI | J12: =IF(SUM(GB!$G$5:$G$34)=0,0,SUM(Bahrein:Hongrie!$G$23:$G$25)) -> 0 | K12: 0 | L12: 1 | N12: NORRIS Lando | O12: =IF(GB!$D$29="",0,SUM(Bahrein:Hongrie!$G$29)) -> 0 | P12: 0 | Q12: 1
G13: 0 | I13: HAAS | J13: =IF(SUM(GB!$G$5:$G$34)=0,0,SUM(Bahrein:Hongrie!$G$26:$G$28)) -> 0 | K13: 0 | L13: 1 | N13: LECLERC Charles | O13: =IF(GB!$D$9="",0,SUM(Bahrein:Hongrie!$G$9)) -> 0 | P13: 0 | Q13: 1
A14: ALONSO Fernando | B14: ASTON MARTIN | G14: 0 | N14: HULKENBERG Nico | O14: =IF(GB!$D$27="",0,SUM(Bahrein:Hongrie!$G$27)) -> 0 | P14: 0 | Q14: 1
A15: STROLL Lance | G15: 0 | N15: BOTTAS Valtteri | O15: =IF(GB!$D$32="",0,SUM(Bahrein:Hongrie!$G$32)) -> 0 | P15: 0 | Q15: 1
G16: 0 | N16: GASLY Pierre | O16: =IF(GB!$D$20="",0,SUM(Bahrein:Hongrie!$G$20)) -> 0 | P16: 0 | Q16: 1
A17: ALBON Alexander | B17: WILLIAMS | G17: 0 | N17: PIASTRI Oscar | O17: =IF(GB!$D$30="",0,SUM(Bahrein:Hongrie!$G$30)) -> 0 | P17: 0 | Q17: 1
A18: SARGEANT Logan | G18: 0 | N18: GUANYU Zhou | O18: =IF(GB!$D$33="",0,SUM(Bahrein:Hongrie!$G$33)) -> 0 | P18: 0 | Q18: 1
G19: 0 | N19: ALBON Alexander | O19: =IF(GB!$D$17="",0,SUM(Bahrein:Hongrie!$G$17)) -> 0 | P19: 0 | Q19: 1
A20: GASLY Pierre | B20: ALPINE F1 TEAM | G20: 0 | N20: MAGNUSEN Kevin | O20: =IF(GB!$D$26="",0,SUM(Bahrein:Hongrie!$G$26)) -> 0 | P20: 0 | Q20: 1
A21: OCON Sebastian | G21: 0 | N21: TSUNODA Yoki | O21: =IF(GB!$D$23="",0,SUM(Bahrein:Hongrie!$G$23)) -> 0 | P21: 0 | Q21: 1
G22: 0 | N22: OCON Sebastian | O22: =IF(GB!$D$21="",0,SUM(Bahrein:Hongrie!$G$21)) -> 0 | P22: 0 | Q22: 1
A23: TSUNODA Yoki | B23: ALPHA TAURI | G23: 0 | N23: DEVRIES Nyck | O23: =IF(GB!$D$24="",0,SUM(Bahrein:Hongrie!$G$24)) -> 0 | P23: 0 | Q23: 1
A24: DEVRIES Nyck | G24: 0
G25: 0
A26: MAGNUSEN Kevin | B26: HAAS | G26: 0
A27: HULKENBERG Nico | G27: 0
G28: 0
A29: NORRIS Lando | B29: Mc LAREN | G29: 0
A30: PIASTRI Oscar | G30: 0
G31: 0
A32: BOTTAS Valtteri | B32: ALFA ROMÉO | G32: 0
A33: GUANYU Zhou | G33: 0
G34: 0

Sheet Belgique
A1: SPA FRANCORCHAMPS - 30 JUILLET 2023
A3: PILOTES | B3: ECURIES | C3: VOITURES | D3: Finish | E3: Pôle | F3: Pt tour | G3: Points | H3: Sprint | I3: ÉCURIES | J3: Points | K3: Écart | L3: Rang | N3: Noms | O3: Points | P3: Écart | Q3: Rang
I4: MERCEDES | J4: =IF(SUM(Hongrie!$G$5:$G$34)=0,0,SUM(Bahrein:Belgique!$G$5:$G$7)) -> 0 | L4: =IF(J4="",0,(RANK(J4,$J$4:$J$13))) -> 1 | N4: VERSTAPPEN Max | O4: =IF(Hongrie!$D$11="",0,SUM(Bahrein:Belgique!$G$11)) -> 0 | Q4: =IF(O4="",0,(RANK(O4,$O$4:$O$23))) -> 1
A5: HAMILTON Lewis | B5: MERCEDES | G5: =IFERROR(CHOOSE(D5,25,18,15,12,10,8,6,4,2,1),0)+IFERROR(CHOOSE(H5,8,7,6,5,4,3,2,1),0)+F5 -> 0 | I5: Mc LAREN | J5: =IF(SUM(Hongrie!$G$5:$G$34)=0,0,SUM(Bahrein:Belgique!$G$29:$G$31)) -> 0 | K5: =J4-J5 -> 0 | L5: =IF(J5="",0,(RANK(J5,$J$4:$J$13))) -> 1 | N5: PEREZ Sergio | O5: =IF(Hongrie!$D$12="",0,SUM(Bahrein:Belgique!$G$12)) -> 0 | P5: =O4-O5 -> 0 | Q5: =IF(O5="",0,(RANK(O5,$O$4:$O$23))) -> 1
A6: RUSSELL George | G6: =IFERROR(CHOOSE(D6,25,18,15,12,10,8,6,4,2,1),0)+IFERROR(CHOOSE(H6,8,7,6,5,4,3,2,1),0)+F6 -> 0 | I6: FERRARI | J6: =IF(SUM(Hongrie!$G$5:$G$34)=0,0,SUM(Bahrein:Belgique!$G$8:$G$10)) -> 0 | K6: =J5-J6 -> 0 | L6: 1 | N6: ALONSO Fernando | O6: =IF(Hongrie!$D$14="",0,SUM(Bahrein:Belgique!$G$14)) -> 0 | P6: =O5-O6 -> 0 | Q6: 1
G7: 0 | I7: WILLIAMS | J7: =IF(SUM(Hongrie!$G$5:$G$34)=0,0,SUM(Bahrein:Belgique!$G$17:$G$19)) -> 0 | K7: 0 | L7: 1 | N7: HAMILTON Lewis | O7: =IF(Hongrie!$D$5="",0,SUM(Bahrein:Belgique!$G$5)) -> 0 | P7: 0 | Q7: 1
A8: SAINZ.Jr Carlos | B8: FERRARI | G8: 0 | I8: ALFA ROMÉO | J8: =IF(SUM(Hongrie!$G$5:$G$34)=0,0,SUM(Bahrein:Belgique!$G$32:$G$34)) -> 0 | K8: 0 | L8: 1 | N8: SAINZ.Jr Carlos | O8: =IF(Hongrie!$D$8="",0,SUM(Bahrein:Belgique!$G$8)) -> 0 | P8: 0 | Q8: 1
A9: LECLERC Charles | G9: 0 | I9: RED BULL RACING | J9: =IF(SUM(Hongrie!$G$5:$G$34)=0,0,SUM(Bahrein:Belgique!$G$11:$G$13)) -> 0 | K9: 0 | L9: 1 | N9: STROLL Lance | O9: =IF(Hongrie!$D$15="",0,SUM(Bahrein:Belgique!$G$15)) -> 0 | P9: 0 | Q9: 1
G10: 0 | I10: ASTON MARTIN | J10: =IF(SUM(Hongrie!$G$5:$G$34)=0,0,SUM(Bahrein:Belgique!$G$14:$G$16)) -> 0 | K10: 0 | L10: 1 | N10: RUSSEL George | O10: =IF(Hongrie!$D$6="",0,SUM(Bahrein:Belgique!$G$6)) -> 0 | P10: 0 | Q10: 1
A11: VERSTAPPEN Max | B11: RED BULL RACING | G11: 0 | I11: ALPINE F1 TEAM | J11: =IF(SUM(Hongrie!$G$5:$G$34)=0,0,SUM(Bahrein:Belgique!$G$20:$G$22)) -> 0 | K11: 0 | L11: 1 | N11: NORRIS Lando | O11: =IF(Hongrie!$D$29="",0,SUM(Bahrein:Belgique!$G$29)) -> 0 | P11: 0 | Q11: 1
A12: PEREZ Sergio | G12: 0 | I12: ALPHA TAURI | J12: =IF(SUM(Hongrie!$G$5:$G$34)=0,0,SUM(Bahrein:Belgique!$G$23:$G$25)) -> 0 | K12: 0 | L12: 1 | N12: LECLERC Charles | O12: =IF(Hongrie!$D$9="",0,SUM(Bahrein:Belgique!$G$9)) -> 0 | P12: 0 | Q12: 1
G13: 0 | I13: HAAS | J13: =IF(SUM(Hongrie!$G$5:$G$34)=0,0,SUM(Bahrein:Belgique!$G$26:$G$28)) -> 0 | K13: 0 | L13: 1 | N13: HULKENBERG Nico | O13: =IF(Hongrie!$D$27="",0,SUM(Bahrein:Belgique!$G$27)) -> 0 | P13: 0 | Q13: 1
A14: ALONSO Fernando | B14: ASTON MARTIN | G14: 0 | N14: BOTTAS Valtteri | O14: =IF(Hongrie!$D$32="",0,SUM(Bahrein:Belgique!$G$32)) -> 0 | P14: 0 | Q14: 1
A15: STROLL Lance | G15: 0 | N15: GASLY Pierre | O15: =IF(Hongrie!$D$20="",0,SUM(Bahrein:Belgique!$G$20)) -> 0 | P15: 0 | Q15: 1
G16: 0 | N16: OCON Sebastian | O16: =IF(Hongrie!$D$21="",0,SUM(Bahrein:Belgique!$G$21)) -> 0 | P16: 0 | Q16: 1
A17: ALBON Alexander | B17: WILLIAMS | G17: 0 | N17: PIASTRI Oscar | O17: =IF(Hongrie!$D$30="",0,SUM(Bahrein:Belgique!$G$30)) -> 0 | P17: 0 | Q17: 1
A18: SARGEANT Logan | G18: 0 | N18: GUANYU Zhou | O18: =IF(Hongrie!$D$33="",0,SUM(Bahrein:Belgique!$G$33)) -> 0 | P18: 0 | Q18: 1
G19: 0 | N19: ALBON Alexander | O19: =IF(Hongrie!$D$17="",0,SUM(Bahrein:Belgique!$G$17)) -> 0 | P19: 0 | Q19: 1
A20: GASLY Pierre | B20: ALPINE F1 TEAM | G20: 0 | N20: MAGNUSSEN Kevin | O20: =IF(Hongrie!$D$26="",0,SUM(Bahrein:Belgique!$G$26)) -> 0 | P20: 0 | Q20: 1
A21: OCON Sebastian | G21: 0 | N21: TSUNODA Yoki | O21: =IF(Hongrie!$D$23="",0,SUM(Bahrein:Belgique!$G$23)) -> 0 | P21: 0 | Q21: 1
G22: 0 | N22: SARGEANT Logan | O22: =IF(Hongrie!$D$18="",0,SUM(Bahrein:Belgique!$G$18)) -> 0 | P22: 0 | Q22: 1
A23: TSUNODA Yoki | B23: ALPHA TAURI | G23: 0 | N23: DEVRIES Nyck | O23: =IF(Hongrie!$D$24="",0,SUM(Bahrein:Belgique!$G$24)) -> 0 | P23: 0 | Q23: 1
A24: DEVRIES Nyck | G24: 0
G25: 0
A26: MAGNUSSEN Kevin | B26: HAAS | G26: 0
A27: HULKENBERG Nico | G27: 0
G28: 0
A29: NORRIS Lando | B29: Mc LAREN | G29: 0
A30: PIASTRI Oscar | G30: 0
G31: 0
A32: BOTTAS Valtteri | B32: ALFA ROMÉO | G32: 0
A33: GUANYU Zhou | G33: 0
G34: 0

Sheet Pays-Bas
A1: ZANDVOORT - 27 AOUT 2023
A3: PILOTES | B3: ECURIES | C3: VOITURES | D3: Finish | E3: Pôle | F3: Pt tour | G3: Points | I3: ÉCURIES | J3: Points | K3: Écart | L3: Rang | N3: Noms | O3: Points | P3: Écart | Q3: Rang
I4: MERCEDES | J4: =IF(SUM(Belgique!$G$5:$G$34)=0,0,SUM('Bahrein:Pays-Bas'!$G$5:$G$7)) -> 0 | L4: =IF(J4="",0,(RANK(J4,$J$4:$J$13))) -> 1 | N4: VERSTAPPEN Max | O4: =IF(Belgique!$D$11="",0,SUM('Bahrein:Pays-Bas'!$G$11)) -> 0 | P4: 0 | Q4: =IF(O4="",0,(RANK(O4,$O$4:$O$23))) -> 1
A5: HAMILTON Lewis | B5: MERCEDES | G5: =IFERROR(CHOOSE(D5,25,18,15,12,10,8,6,4,2,1)+(F5=1),0) -> 0 | I5: Mc LAREN | J5: =IF(SUM(Belgique!$G$5:$G$34)=0,0,SUM(Bahrein:'Pays-Bas'!$G$29:$G$31)) -> 0 | K5: =J4-J5 -> 0 | L5: =IF(J5="",0,(RANK(J5,$J$4:$J$13))) -> 1 | N5: PEREZ Sergio | O5: =IF(Belgique!$D$12="",0,SUM(Bahrein:'Pays-Bas'!$G$12)) -> 0 | P5: =O4-O5 -> 0 | Q5: =IF(O5="",0,(RANK(O5,$O$4:$O$23))) -> 1
A6: RUSSELL George | G6: =IFERROR(CHOOSE(D6,25,18,15,12,10,8,6,4,2,1)+(F6=1),0) -> 0 | I6: FERRARI | J6: =IF(SUM(Belgique!$G$5:$G$34)=0,0,SUM(Bahrein:'Pays-Bas'!$G$8:$G$10)) -> 0 | K6: =J5-J6 -> 0 | L6: 1 | N6: ALONSO Fernando | O6: =IF(Belgique!$D$14="",0,SUM(Bahrein:'Pays-Bas'!$G$14)) -> 0 | P6: =O5-O6 -> 0 | Q6: 1
G7: 0 | I7: WILLIAMS | J7: =IF(SUM(Belgique!$G$5:$G$34)=0,0,SUM(Bahrein:'Pays-Bas'!$G$17:$G$19)) -> 0 | K7: 0 | L7: 1 | N7: HAMILTON Lewis | O7: =IF(Belgique!$D$5="",0,SUM(Bahrein:'Pays-Bas'!$G$5)) -> 0 | P7: 0 | Q7: 1
A8: SAINZ.Jr Carlos | B8: FERRARI | G8: 0 | I8: ALFA ROMÉO | J8: =IF(SUM(Belgique!$G$5:$G$34)=0,0,SUM(Bahrein:'Pays-Bas'!$G$32:$G$34)) -> 0 | K8: 0 | L8: 1 | N8: SAINZ.Jr Carlos | O8: =IF(Belgique!$D$8="",0,SUM(Bahrein:'Pays-Bas'!$G$8)) -> 0 | P8: 0 | Q8: 1
A9: LECLERC Charles | G9: 0 | I9: RED BULL RACING | J9: =IF(SUM(Belgique!$G$5:$G$34)=0,0,SUM(Bahrein:'Pays-Bas'!$G$11:$G$13)) -> 0 | K9: 0 | L9: 1 | N9: STROLL Lance | O9: =IF(Belgique!$D$15="",0,SUM('Bahrein:Pays-Bas'!$G$15)) -> 0 | P9: 0 | Q9: 1
G10: 0 | I10: ASTON MARTIN | J10: =IF(SUM(Belgique!$G$5:$G$34)=0,0,SUM(Bahrein:'Pays-Bas'!$G$14:$G$16)) -> 0 | K10: 0 | L10: 1 | N10: RUSSEL George | O10: =IF(Belgique!$D$6="",0,SUM(Bahrein:'Pays-Bas'!$G$6)) -> 0 | P10: 0 | Q10: 1
A11: VERSTAPPEN Max | B11: RED BULL RACING | G11: 0 | I11: ALPINE F1 TEAM | J11: =IF(SUM(Belgique!$G$5:$G$34)=0,0,SUM(Bahrein:'Pays-Bas'!$G$20:$G$22)) -> 0 | K11: 0 | L11: 1 | N11: NORRIS Lando | O11: =IF(Belgique!$D$29="",0,SUM(Bahrein:'Pays-Bas'!$G$29)) -> 0 | P11: 0 | Q11: 1
A12: PEREZ Sergio | G12: 0 | I12: ALPHA TAURI | J12: =IF(SUM(Belgique!$G$5:$G$34)=0,0,SUM(Bahrein:'Pays-Bas'!$G$23:$G$25)) -> 0 | K12: 0 | L12: 1 | N12: LECLERC Charles | O12: =IF(Belgique!$D$9="",0,SUM(Bahrein:'Pays-Bas'!$G$9)) -> 0 | P12: 0 | Q12: 1
G13: 0 | I13: HAAS | J13: =IF(SUM(Belgique!$G$5:$G$34)=0,0,SUM(Bahrein:'Pays-Bas'!$G$23:$G$25)) -> 0 | K13: 0 | L13: 1 | N13: HULKENBERG Nico | O13: =IF(Belgique!$D$27="",0,SUM(Bahrein:'Pays-Bas'!$G$27)) -> 0 | P13: 0 | Q13: 1
A14: ALONSO Fernando | B14: ASTON MARTIN | G14: 0 | N14: BOTTAS Valtteri | O14: =IF(Belgique!$D$32="",0,SUM(Bahrein:'Pays-Bas'!$G$32)) -> 0 | P14: 0 | Q14: 1
A15: STROLL Lance | G15: 0 | N15: GASLY Pierre | O15: =IF(Belgique!$D$20="",0,SUM(Bahrein:'Pays-Bas'!$G$20)) -> 0 | P15: 0 | Q15: 1
G16: 0 | N16: OCON Sebastian | O16: =IF(Belgique!$D$21="",0,SUM('Bahrein:Pays-Bas'!$G$21)) -> 0 | P16: 0 | Q16: 1
A17: ALBON Alexander | B17: WILLIAMS | G17: 0 | N17: PIASTRI Oscar | O17: =IF(Belgique!$D$30="",0,SUM(Bahrein:'Pays-Bas'!$G$30)) -> 0 | P17: 0 | Q17: 1
A18: SARGEANT Logan | G18: 0 | N18: GUANYU Zhou | O18: =IF(Belgique!$D$33="",0,SUM(Bahrein:'Pays-Bas'!$G$33)) -> 0 | P18: 0 | Q18: 1
G19: 0 | N19: ALBON Alexander | O19: =IF(Belgique!$D$17="",0,SUM(Bahrein:'Pays-Bas'!$G$17)) -> 0 | P19: 0 | Q19: 1
A20: GASLY Pierre | B20: ALPINE F1 TEAM | G20: 0 | N20: MAGNUSSEN Kevin | O20: =IF(Belgique!$D$26="",0,SUM(Bahrein:'Pays-Bas'!$G$26)) -> 0 | P20: 0 | Q20: 1
A21: OCON Sebastian | G21: 0 | N21: TSUNODA Yoki | O21: =IF(Belgique!$D$23="",0,SUM(Bahrein:'Pays-Bas'!$G$23)) -> 0 | P21: 0 | Q21: 1
G22: 0 | N22: DEVRIES Nyck | O22: =IF(Belgique!$D$24="",0,SUM(Bahrein:'Pays-Bas'!$G$24)) -> 0 | P22: 0 | Q22: 1
A23: TSUNODA Yoki | B23: ALPHA TAURI | G23: 0 | N23: SARGEANT Logan | O23: =IF(Belgique!$D$18="",0,SUM(Bahrein:'Pays-Bas'!$G$18)) -> 0 | P23: 0 | Q23: 1
A24: DEVRIES Nyck | G24: 0
G25: 0
A26: MAGNUSSEN Kevin | B26: HAAS | G26: 0
A27: HULKENBERG Nico | G27: 0
G28: 0
A29: NORRIS Lando | B29: Mc LAREN | G29: 0
A30: PIASTRI Oscar | G30: 0
G31: 0
A32: BOTTAS Valtteri | B32: ALFA ROMÉO | G32: 0
A33: GUANYU Zhou | G33: 0
G34: 0

Sheet Italie
A1: MONZA - 3 SEPTEMBRE 2023
A3: PILOTES | B3: ECURIES | C3: VOITURES | D3: Finish | E3: Pôle | F3: Pt tour | G3: Points | I3: ÉCURIES | J3: Points | K3: Écart | L3: Rang | N3: Noms | O3: Points | P3: Écart | Q3: Rang
I4: MERCEDES | J4: =IF(SUM('Pays-Bas'!$G$5:$G$34)=0,0,SUM(Bahrein:Italie!$G$5:$G$7)) -> 0 | L4: =IF(J4="",0,(RANK(J4,$J$4:$J$13))) -> 1 | N4: VERSTAPPEN Max | O4: =IF('Pays-Bas'!$D$11="",0,SUM(Bahrein:Italie!$G$11)) -> 0 | Q4: =IF(O4="",0,(RANK(O4,$O$4:$O$23))) -> 1
A5: HAMILTON Lewis | B5: MERCEDES | G5: =IFERROR(CHOOSE(D5,25,18,15,12,10,8,6,4,2,1)+(F5=1),0) -> 0 | I5: Mc LAREN | J5: =IF(SUM('Pays-Bas'!$G$5:$G$34)=0,0,SUM(Bahrein:Italie!$G$29:$G$31)) -> 0 | K5: =J4-J5 -> 0 | L5: =IF(J5="",0,(RANK(J5,$J$4:$J$13))) -> 1 | N5: PEREZ Sergio | O5: =IF('Pays-Bas'!$D$12="",0,SUM(Bahrein:Italie!$G$12)) -> 0 | P5: =O4-O5 -> 0 | Q5: =IF(O5="",0,(RANK(O5,$C$40:$C$60))) -> 1
A6: RUSSELL George | G6: =IFERROR(CHOOSE(D6,25,18,15,12,10,8,6,4,2,1)+(F6=1),0) -> 0 | I6: FERRARI | J6: =IF(SUM('Pays-Bas'!$G$5:$G$34)=0,0,SUM(Bahrein:Italie!$G$8:$G$10)) -> 0 | K6: =J5-J6 -> 0 | L6: 1 | N6: ALONSO Fernando | O6: =IF('Pays-Bas'!$D$14="",0,SUM(Bahrein:Italie!$G$14)) -> 0 | P6: =O5-O6 -> 0 | Q6: 1
G7: 0 | I7: WILLIAMS | J7: =IF(SUM('Pays-Bas'!$G$5:$G$34)=0,0,SUM(Bahrein:Italie!$G$17:$G$19)) -> 0 | K7: 0 | L7: 1 | N7: HAMILTON Lewis | O7: =IF('Pays-Bas'!$D$5="",0,SUM(Bahrein:Italie!$G$5)) -> 0 | P7: 0 | Q7: 1
A8: SAINZ.Jr Carlos | B8: FERRARI | G8: 0 | I8: ALFA ROMÉO | J8: =IF(SUM('Pays-Bas'!$G$5:$G$34)=0,0,SUM(Bahrein:Italie!$G$32:$G$34)) -> 0 | K8: 0 | L8: 1 | N8: SAINZ.Jr Carlos | O8: =IF('Pays-Bas'!$D$8="",0,SUM(Bahrein:Italie!$G$8)) -> 0 | P8: 0 | Q8: 1
A9: LECLERC Charles | G9: 0 | I9: RED BULL RACING | J9: =IF(SUM('Pays-Bas'!$G$5:$G$34)=0,0,SUM(Bahrein:Italie!$G$11:$G$13)) -> 0 | K9: 0 | L9: 1 | N9: STROLL Lance | O9: =IF('Pays-Bas'!$D$15="",0,SUM(Bahrein:Italie!$G$15)) -> 0 | P9: 0 | Q9: 1
G10: 0 | I10: ASTON MARTIN | J10: =IF(SUM('Pays-Bas'!$G$5:$G$34)=0,0,SUM(Bahrein:Italie!$G$14:$G$16)) -> 0 | K10: 0 | L10: 1 | N10: RUSSEL George | O10: =IF('Pays-Bas'!$D$6="",0,SUM(Bahrein:Italie!$G$6)) -> 0 | P10: 0 | Q10: 1
A11: VERSTAPPEN Max | B11: RED BULL RACING | G11: 0 | I11: ALPINE F1 TEAM | J11: =IF(SUM('Pays-Bas'!$G$5:$G$34)=0,0,SUM(Bahrein:Italie!$G$20:$G$22)) -> 0 | K11: 0 | L11: 1 | N11: NORRIS Lando | O11: =IF('Pays-Bas'!$D$29="",0,SUM(Bahrein:Italie!$G$29)) -> 0 | P11: 0 | Q11: 1
A12: PEREZ Sergio | G12: 0 | I12: ALPHA TAURI | J12: =IF(SUM('Pays-Bas'!$G$5:$G$34)=0,0,SUM(Bahrein:Italie!$G$23:$G$25)) -> 0 | K12: 0 | L12: 1 | N12: LECLERC Charles | O12: =IF('Pays-Bas'!$D$9="",0,SUM(Bahrein:Italie!$G$9)) -> 0 | P12: 0 | Q12: 1
G13: 0 | I13: HAAS | J13: =IF(SUM('Pays-Bas'!$G$5:$G$34)=0,0,SUM(Bahrein:Italie!$G$26:$G$28)) -> 0 | K13: 0 | L13: 1 | N13: BOTTAS Valtteri | O13: =IF('Pays-Bas'!$D$32="",0,SUM(Bahrein:Italie!$G$32)) -> 0 | P13: 0 | Q13: 1
A14: ALONSO Fernando | B14: ASTON MARTIN | G14: 0 | N14: GASLY Pierre | O14: =IF('Pays-Bas'!$D$20="",0,SUM(Bahrein:Italie!$G$20)) -> 0 | P14: 0 | Q14: 1
A15: STROLL Lance | G15: 0 | N15: OCON Sebastian | O15: =IF('Pays-Bas'!$D$21="",0,SUM(Bahrein:Italie!$G$21)) -> 0 | P15: 0 | Q15: 1
G16: 0 | N16: PIASTRI Oscar | O16: =IF('Pays-Bas'!$D$29="",0,SUM(Bahrein:Italie!$G$29)) -> 0 | P16: 0 | Q16: 1
A17: ALBON Alexander | B17: WILLIAMS | G17: 0 | N17: GUANYU Zhou | O17: =IF('Pays-Bas'!$D$33="",0,SUM(Bahrein:Italie!$G$33)) -> 0 | P17: 0 | Q17: 1
A18: SARGEANT Logan | G18: 0 | N18: ALBON Alexander | O18: =IF('Pays-Bas'!$D$17="",0,SUM(Bahrein:Italie!$G$17)) -> 0 | P18: 0 | Q18: 1
G19: 0 | N19: PIASTRI Oscar | O19: =IF('Pays-Bas'!$D$30="",0,SUM(Bahrein:Italie!$G$30)) -> 0 | P19: 0 | Q19: 1
A20: GASLY Pierre | B20: ALPINE F1 TEAM | G20: 0 | N20: HULKENBERG Nico | O20: =IF('Pays-Bas'!$D$27="",0,SUM(Bahrein:Italie!$G$27)) -> 0 | P20: 0 | Q20: 1
A21: OCON Sebastian | G21: 0 | N21: MAGNUSSEN Kevin | O21: =IF('Pays-Bas'!$D$26="",0,SUM(Bahrein:Italie!$G$26)) -> 0 | P21: 0 | Q21: 1
G22: 0 | N22: TSUNODA Yoki | O22: =IF('Pays-Bas'!$D$23="",0,SUM(Bahrein:Italie!$G$23)) -> 0 | P22: 0 | Q22: 1
A23: TSUNODA Yoki | B23: ALPHA TAURI | G23: 0 | N23: DEVRIES Nyck | O23: =IF('Pays-Bas'!$D$24="",0,SUM(Bahrein:Italie!$G$24)) -> 0 | P23: 0 | Q23: 1
A24: DEVRIES Nyck | G24: 0
G25: 0
A26: MAGNUSSEN Kevin | B26: HAAS | G26: 0
A27: HULKENBERG Nico | G27: 0
G28: 0
A29: NORRIS Lando | B29: Mc LAREN | G29: 0
A30: PIASTRI Oscar | G30: 0
G31: 0
A32: BOTTAS Valtteri | B32: ALFA ROMÉO | G32: 0
A33: GUANYU Zhou | G33: 0
G34: 0
B40: SARGEANT Logan | C40: =IF('Pays-Bas'!$D$11="",0,SUM(Bahrein:Italie!$G$11)) -> 0
D60: =O23-C60 -> 0 | E60: =IF(C60="",0,(RANK(C60,$C$40:$C$60))) -> 0

Sheet Singapour
A1: SINGAPOUR - 17 SEPTEMBRE 2023
A3: PILOTES | B3: ECURIES | C3: VOITURES | D3: Finish | E3: Pôle | F3: Pt tour | G3: Points | I3: ÉCURIES | J3: Points | K3: Écart | L3: Rang | N3: Noms | O3: Points | P3: Écart | Q3: Rang
I4: ALPINE F1 TEAM | J4: =IF(SUM(Italie!$G$5:$G$34)=0,0,SUM(Bahrein:Singapour!$G$20:$G$22)) -> 0 | L4: =IF(J4="",0,(RANK(J4,$J$4:$J$13))) -> 1 | N4: VERSTAPPEN Max | O4: =IF(Italie!$D$11="",0,SUM(Bahrein:Singapour!$G$11)) -> 0 | Q4: =IF(O4="",0,(RANK(O4,$O$4:$O$23))) -> 1
A5: HAMILTON Lewis | B5: MERCEDES | G5: =IFERROR(CHOOSE(D5,25,18,15,12,10,8,6,4,2,1)+(F5=1),0) -> 0 | I5: Mc LAREN | J5: =IF(SUM(Italie!$G$5:$G$34)=0,0,SUM(Bahrein:Singapour!$G$29:$G$31)) -> 0 | K5: =J4-J5 -> 0 | L5: =IF(J5="",0,(RANK(J5,$J$4:$J$13))) -> 1 | N5: PEREZ Sergio | O5: =IF(Italie!$D$12="",0,SUM(Bahrein:Singapour!$G$12)) -> 0 | P5: =O4-O5 -> 0 | Q5: =IF(O5="",0,(RANK(O5,$O$4:$O$23))) -> 1
A6: RUSSELL George | G6: =IFERROR(CHOOSE(D6,25,18,15,12,10,8,6,4,2,1)+(F6=1),0) -> 0 | I6: FERRARI | J6: =IF(SUM(Italie!$G$5:$G$34)=0,0,SUM(Bahrein:Singapour!$G$8:$G$10)) -> 0 | K6: =J5-J6 -> 0 | L6: 1 | N6: ALONSO Fernando | O6: =IF(Italie!$D$14="",0,SUM(Bahrein:Singapour!$G$14)) -> 0 | P6: =O5-O6 -> 0 | Q6: 1
G7: 0 | I7: WILLIAMS | J7: =IF(SUM(Italie!$G$5:$G$34)=0,0,SUM(Bahrein:Singapour!$G$17:$G$19)) -> 0 | K7: 0 | L7: 1 | N7: HAMILTON Lewis | O7: =IF(Italie!$D$5="",0,SUM(Bahrein:Singapour!$G$5)) -> 0 | P7: 0 | Q7: 1
A8: SAINZ.Jr Carlos | B8: FERRARI | G8: 0 | I8: ALFA ROMÉO | J8: =IF(SUM(Italie!$G$5:$G$34)=0,0,SUM(Bahrein:Singapour!$G$32:$G$34)) -> 0 | K8: 0 | L8: 1 | N8: SAINZ.Jr Carlos | O8: =IF(Italie!$D$8="",0,SUM(Bahrein:Singapour!$G$8)) -> 0 | P8: 0 | Q8: 1
A9: LECLERC Charles | G9: 0 | I9: MERCEDES | J9: =IF(SUM(Italie!$G$5:$G$34)=0,0,SUM(Bahrein:Singapour!$G$5:$G$7)) -> 0 | K9: 0 | L9: 1 | N9: RUSSEL George | O9: =IF(Italie!$D$6="",0,SUM(Bahrein:Singapour!$G$6)) -> 0 | P9: 0 | Q9: 1
G10: 0 | I10: RED BULL RACING | J10: =IF(SUM(Italie!$G$5:$G$34)=0,0,SUM(Bahrein:Singapour!$G$11:$G$13)) -> 0 | K10: 0 | L10: 1 | N10: STROLL Lance | O10: =IF(Italie!$D$15="",0,SUM(Bahrein:Singapour!$G$15)) -> 0 | P10: 0 | Q10: 1
A11: VERSTAPPEN Max | B11: RED BULL RACING | G11: 0 | I11: ASTON MARTIN | J11: =IF(SUM(Italie!$G$5:$G$34)=0,0,SUM(Bahrein:Singapour!$G$14:$G$16)) -> 0 | K11: 0 | L11: 1 | N11: NORRIS Lando | O11: =IF(Italie!$D$30="",0,SUM(Bahrein:Singapour!$G$30)) -> 0 | P11: 0 | Q11: 1
A12: PEREZ Sergio | G12: 0 | I12: ALPHA TAURI | J12: =IF(SUM(Italie!$G$5:$G$34)=0,0,SUM(Bahrein:Singapour!$G$23:$G$25)) -> 0 | K12: 0 | L12: 1 | N12: BOTTAS Valtteri | O12: =IF(Italie!$D$32="",0,SUM(Bahrein:Singapour!$G$32)) -> 0 | P12: 0 | Q12: 1
G13: 0 | I13: HAAS | J13: =IF(SUM(Italie!$G$5:$G$34)=0,0,SUM(Bahrein:Singapour!$G$26:$G$28)) -> 0 | K13: 0 | L13: 1 | N13: TSUNODA Yoki | O13: =IF(Italie!$D$23="",0,SUM(Bahrein:Singapour!$G$23)) -> 0 | P13: 0 | Q13: 1
A14: ALONSO Fernando | B14: ASTON MARTIN | G14: 0 | N14: GASLY Pierre | O14: =IF(Italie!$D$20="",0,SUM(Bahrein:Singapour!$G$20)) -> 0 | P14: 0 | Q14: 1
A15: STROLL Lance | G15: 0 | N15: ALBON Alexander | O15: =IF(Italie!$D$17="",0,SUM(Bahrein:Singapour!$G$17)) -> 0 | P15: 0 | Q15: 1
G16: 0 | N16: DEVRIES Nyck | O16: =IF(Italie!$D$24="",0,SUM(Bahrein:Singapour!$G$24)) -> 0 | P16: 0 | Q16: 1
A17: ALBON Alexander | B17: WILLIAMS | G17: 0 | N17: GUANYU Zhou | O17: =IF(Italie!$D$33="",0,SUM(Bahrein:Singapour!$G$33)) -> 0 | P17: 0 | Q17: 1
A18: SARGEANT Logan | G18: 0 | N18: MAGNUSSEN Kevin | O18: =IF(Italie!$D$26="",0,SUM(Bahrein:Singapour!$G$26)) -> 0 | P18: 0 | Q18: 1
G19: 0 | N19: PIASTRI Oscar | O19: =IF(Italie!$D$30="",0,SUM(Bahrein:Singapour!$G$30)) -> 0 | P19: 0 | Q19: 1
A20: GASLY Pierre | B20: ALPINE F1 TEAM | G20: 0 | N20: HULKENBERG Nico | O20: =IF(Italie!$D$27="",0,SUM(Bahrein:Singapour!$G$27)) -> 0 | P20: 0 | Q20: 1
A21: OCON Sebastian | G21: 0 | N21: OCON Sebastian | O21: =IF(Italie!$D$21="",0,SUM(Bahrein:Singapour!$G$21)) -> 0 | P21: 0 | Q21: 1
G22: 0 | N22: SARGEANT Logan | O22: =IF(Italie!$D$18="",0,SUM(Bahrein:Singapour!$G$18)) -> 0 | P22: 0 | Q22: 1
A23: TSUNODA Yoki | B23: ALPHA TAURI | G23: 0 | N23: LECLERC Charles | O23: =IF(Italie!$D$9="",0,SUM(Bahrein:Singapour!$G$9)) -> 0 | P23: 0 | Q23: 1
A24: DEVRIES Nyck | G24: 0
G25: 0
A26: MAGNUSSEN Kevin | B26: HAAS | G26: 0
A27: HULKENBERG Nico | G27: 0
G28: 0
A29: NORRIS Lando | B29: Mc LAREN | G29: 0
A30: PIASTRI Oscar | G30: 0
G31: 0
A32: BOTTAS Valtteri | B32: ALFA ROMÉO | G32: 0
A33: GUANYU Zhou | G33: 0
G34: 0

Sheet Japon
A1: SUZUKA- 24 SEPTEMBRE 2023
A3: PILOTES | B3: ECURIES | C3: VOITURES | D3: Finish | E3: Pôle | F3: Pt tour | G3: Points | I3: ÉCURIES | J3: Points | K3: Écart | L3: Rang | N3: Noms | O3: Points | P3: Écart | Q3: Rang
I4: Mc LAREN | J4: =IF(SUM(Singapour!$G$5:$G$34)=0,0,SUM(Bahrein:Japon!$G$29:$G$31)) -> 0 | L4: =IF(J4="",0,(RANK(J4,$J$4:$J$13))) -> 1 | N4: VERSTAPPEN Max | O4: =IF(Singapour!$D$11="",0,SUM(Bahrein:Japon!$G$11)) -> 0 | Q4: =IF(O4="",0,(RANK(O4,$O$4:$O$23))) -> 1
A5: HAMILTON Lewis | B5: MERCEDES | G5: =IFERROR(CHOOSE(D5,25,18,15,12,10,8,6,4,2,1)+(F5=1),0) -> 0 | I5: FERRARI | J5: =IF(SUM(Singapour!$G$5:$G$34)=0,0,SUM(Bahrein:Japon!$G$8:$G$10)) -> 0 | K5: =J4-J5 -> 0 | L5: =IF(J5="",0,(RANK(J5,$J$4:$J$13))) -> 1 | N5: PEREZ Sergio | O5: =IF(Singapour!$D$12="",0,SUM(Bahrein:Japon!$G$12)) -> 0 | P5: =O4-O5 -> 0 | Q5: =IF(O5="",0,(RANK(O5,$O$4:$O$23))) -> 1
A6: RUSSELL George | G6: =IFERROR(CHOOSE(D6,25,18,15,12,10,8,6,4,2,1)+(F6=1),0) -> 0 | I6: WILLIAMS | J6: =IF(SUM(Singapour!$G$5:$G$34)=0,0,SUM(Bahrein:Japon!$G$17:$G$19)) -> 0 | K6: =J5-J6 -> 0 | L6: 1 | N6: ALONSO Fernando | O6: =IF(Singapour!$D$14="",0,SUM(Bahrein:Japon!$G$14)) -> 0 | P6: =O5-O6 -> 0 | Q6: 1
G7: 0 | I7: ALFA ROMÉO | J7: =IF(SUM(Singapour!$G$5:$G$34)=0,0,SUM(Bahrein:Japon!$G$32:$G$34)) -> 0 | K7: 0 | L7: 1 | N7: HAMILTON Lewis | O7: =IF(Singapour!$D$11="",0,SUM(Bahrein:Japon!$G$11)) -> 0 | P7: 0 | Q7: 1
A8: SAINZ.Jr Carlos | B8: FERRARI | G8: 0 | I8: MERCEDES | J8: =IF(SUM(Singapour!$G$5:$G$34)=0,0,SUM(Bahrein:Japon!$G$5:$G$7)) -> 0 | K8: 0 | L8: 1 | N8: SAINZ.Jr Carlos | O8: =IF(Singapour!$D$11="",0,SUM(Bahrein:Japon!$G$11)) -> 0 | P8: 0 | Q8: 1
A9: LECLERC Charles | G9: 0 | I9: RED BULL RACING | J9: =IF(SUM(Singapour!$G$5:$G$34)=0,0,SUM(Bahrein:Japon!$G$11:$G$13)) -> 0 | K9: 0 | L9: 1 | N9: STROLL Lance | O9: =IF(Singapour!$D$15="",0,SUM(Bahrein:Japon!$G$15)) -> 0 | P9: 0 | Q9: 1
G10: 0 | I10: ASTON MARTIN | J10: =IF(SUM(Singapour!$G$5:$G$34)=0,0,SUM(Bahrein:Japon!$G$14:$G$16)) -> 0 | K10: 0 | L10: 1 | N10: RUSSEL George | O10: =IF(Singapour!$D$6="",0,SUM(Bahrein:Japon!$G$6)) -> 0 | P10: 0 | Q10: 1
A11: VERSTAPPEN Max | B11: RED BULL RACING | G11: 0 | I11: ALPINE F1 TEAM | J11: =IF(SUM(Singapour!$G$5:$G$34)=0,0,SUM(Bahrein:Japon!$G$20:$G$22)) -> 0 | K11: 0 | L11: 1 | N11: NORRIS Lando | O11: =IF(Singapour!$D$29="",0,SUM(Bahrein:Japon!$G$29)) -> 0 | P11: 0 | Q11: 1
A12: PEREZ Sergio | G12: 0 | I12: ALPHA TAURI | J12: =IF(SUM(Singapour!$G$5:$G$34)=0,0,SUM(Bahrein:Japon!$G$23:$G$25)) -> 0 | K12: 0 | L12: 1 | N12: LECLERC Charles | O12: =IF(Singapour!$D$9="",0,SUM(Bahrein:Japon!$G$9)) -> 0 | P12: 0 | Q12: 1
G13: 0 | I13: HAAS | J13: =IF(SUM(Singapour!$G$26:$G$28)=0,0,SUM(Bahrein:Japon!$G$26:$G$28)) -> 0 | K13: 0 | L13: 1 | N13: HULKENBERG Nico | O13: =IF(Singapour!$D$27="",0,SUM(Bahrein:Japon!$G$27)) -> 0 | P13: 0 | Q13: 1
A14: ALONSO Fernando | B14: ASTON MARTIN | G14: 0 | N14: GASLY Pierre | O14: =IF(Singapour!$D$20="",0,SUM(Bahrein:Japon!$G$20)) -> 0 | P14: 0 | Q14: 1
A15: STROLL Lance | G15: 0 | N15: OCON Sebastian | O15: =IF(Singapour!$D$21="",0,SUM(Bahrein:Japon!$G$21)) -> 0 | P15: 0 | Q15: 1
G16: 0 | N16: BOTTAS Valtteri | O16: =IF(Singapour!$D$32="",0,SUM(Bahrein:Japon!$G$32)) -> 0 | P16: 0 | Q16: 1
A17: ALBON Alexander | B17: WILLIAMS | G17: 0 | N17: PIASTRI Oscar | O17: =IF(Singapour!$D$30="",0,SUM(Bahrein:Japon!$G$30)) -> 0 | P17: 0 | Q17: 1
A18: SARGEANT Logan | G18: 0 | N18: GUANYU Zhou | O18: =IF(Singapour!$D$33="",0,SUM(Bahrein:Japon!$G$33)) -> 0 | P18: 0 | Q18: 1
G19: 0 | N19: ALBON Alexander | O19: =IF(Singapour!$D$17="",0,SUM(Bahrein:Japon!$G$17)) -> 0 | P19: 0 | Q19: 1
A20: GASLY Pierre | B20: ALPINE F1 TEAM | G20: 0 | N20: MAGNUSSEN Kevin | O20: =IF(Singapour!$D$26="",0,SUM(Bahrein:Japon!$G$26)) -> 0 | P20: 0 | Q20: 1
A21: OCON Sebastian | G21: 0 | N21: TSUNODA Yoki | O21: =IF(Singapour!$D$23="",0,SUM(Bahrein:Japon!$G$23)) -> 0 | P21: 0 | Q21: 1
G22: 0 | N22: DEVRIES Nyck | O22: =IF(Singapour!$D$24="",0,SUM(Bahrein:Japon!$G$24)) -> 0 | P22: 0 | Q22: 1
A23: TSUNODA Yoki | B23: ALPHA TAURI | G23: 0 | N23: SARGEANT Logan | O23: =IF(Singapour!$D$18="",0,SUM(Bahrein:Japon!$G$18)) -> 0 | P23: 0 | Q23: 1
A24: DEVRIES Nyck | G24: 0
G25: 0
A26: MAGNUSSEN Kevin | B26: HAAS | G26: 0
A27: HULKENBERG Nico | G27: 0
G28: 0
A29: NORRIS Lando | B29: Mc LAREN | G29: 0
A30: PIASTRI Oscar | G30: 0
G31: 0
A32: BOTTAS Valtteri | B32: ALFA ROMÉO | G32: 0
A33: GUANYU Zhou | G33: 0
G34: 0

Sheet Qatar
A1: LOSAIL - 8 OCTOBRE 2023
A3: PILOTES | B3: ECURIES | C3: VOITURES | D3: Finish | E3: Pôle | F3: Pt tour | G3: Points | H3: Sprint | I3: ÉCURIES | J3: Points | K3: Écart | L3: Rang | N3: Noms | O3: Points | Q3: Rang
I4: ALPINE F1 TEAM | J4: =IF(SUM(Japon!$G$5:$G$34)=0,0,SUM(Bahrein:Qatar!$G$20:$G$22)) -> 0 | L4: =IF(J4="",0,(RANK(J4,$J$4:$J$13))) -> 1 | N4: VERSTAPPEN Max | O4: =IF(Japon!$D$11="",0,SUM(Bahrein:Qatar!$G$11)) -> 0 | P4: 0 | Q4: =IF(O4="",0,(RANK(O4,$O$4:$O$23))) -> 1
A5: HAMILTON Lewis | B5: MERCEDES | G5: =IFERROR(CHOOSE(D5,25,18,15,12,10,8,6,4,2,1),0)+IFERROR(CHOOSE(H5,8,7,6,5,4,3,2,1),0)+F5 -> 0 | I5: Mc LAREN | J5: =IF(SUM(Japon!$G$5:$G$34)=0,0,SUM(Bahrein:Qatar!$G$29:$G$31)) -> 0 | K5: =J4-J5 -> 0 | L5: =IF(J5="",0,(RANK(J5,$J$4:$J$13))) -> 1 | N5: PEREZ Sergio | O5: =IF(Japon!$D$12="",0,SUM(Bahrein:Qatar!$G$12)) -> 0 | P5: =O4-O5 -> 0 | Q5: =IF(O5="",0,(RANK(O5,$O$4:$O$23))) -> 1
A6: RUSSELL George | G6: =IFERROR(CHOOSE(D6,25,18,15,12,10,8,6,4,2,1),0)+IFERROR(CHOOSE(H6,8,7,6,5,4,3,2,1),0)+F6 -> 0 | I6: FERRARI | J6: =IF(SUM(Japon!$G$5:$G$34)=0,0,SUM(Bahrein:Qatar!$G$8:$G$10)) -> 0 | K6: =J5-J6 -> 0 | L6: 1 | N6: ALONSO Fernando | O6: =IF(Japon!$D$14="",0,SUM(Bahrein:Qatar!$G$14)) -> 0 | P6: =O5-O6 -> 0 | Q6: 1
G7: 0 | I7: WILLIAMS | J7: =IF(SUM(Japon!$G$5:$G$34)=0,0,SUM(Bahrein:Qatar!$G$17:$G$19)) -> 0 | K7: 0 | L7: 1 | N7: HAMILTON Lewis | O7: =IF(Japon!$D$5="",0,SUM(Bahrein:Qatar!$G$5)) -> 0 | P7: 0 | Q7: 1
A8: SAINZ.Jr Carlos | B8: FERRARI | G8: 0 | I8: ALFA ROMÉO | J8: =IF(SUM(Japon!$G$5:$G$34)=0,0,SUM(Bahrein:Qatar!$G$32:$G$34)) -> 0 | K8: 0 | L8: 1 | N8: SAINZ.Jr Carlos | O8: =IF(Japon!$D$8="",0,SUM(Bahrein:Qatar!$G$8)) -> 0 | P8: 0 | Q8: 1
A9: LECLERC Charles | G9: 0 | I9: MERCEDES | J9: =IF(SUM(Japon!$G$5:$G$34)=0,0,SUM(Bahrein:Qatar!$G$5:$G$7)) -> 0 | K9: 0 | L9: 1 | N9: STROLL Lance | O9: =IF(Japon!$D$15="",0,SUM(Bahrein:Qatar!$G$15)) -> 0 | P9: 0 | Q9: 1
G10: 0 | I10: RED BULL RACING | J10: =IF(SUM(Japon!$G$5:$G$34)=0,0,SUM(Bahrein:Qatar!$G$11:$G$13)) -> 0 | K10: 0 | L10: 1 | N10: RUSSEL George | O10: =IF(Japon!$D$6="",0,SUM(Bahrein:Qatar!$G$6)) -> 0 | P10: 0 | Q10: 1
A11: VERSTAPPEN Max | B11: RED BULL RACING | G11: 0 | I11: ASTON MARTIN | J11: =IF(SUM(Japon!$G$5:$G$34)=0,0,SUM(Bahrein:Qatar!$G$14:$G$16)) -> 0 | K11: 0 | L11: 1 | N11: NORRIS Lando | O11: =IF(Japon!$D$29="",0,SUM(Bahrein:Qatar!$G$29)) -> 0 | P11: 0 | Q11: 1
A12: PEREZ Sergio | G12: 0 | I12: ALPHA TAURI | J12: =IF(SUM(Japon!$G$5:$G$34)=0,0,SUM(Bahrein:Qatar!$G$23:$G$25)) -> 0 | K12: 0 | L12: 1 | N12: LECLERC Charles | O12: =IF(Japon!$D$9="",0,SUM(Bahrein:Qatar!$G$9)) -> 0 | P12: 0 | Q12: 1
G13: 0 | I13: HAAS | J13: =IF(SUM(Japon!$G$5:$G$34)=0,0,SUM(Bahrein:Qatar!$G$26:$G$28)) -> 0 | K13: 0 | L13: 1 | N13: HULKENBERG Nico | O13: =IF(Japon!$D$27="",0,SUM(Bahrein:Qatar!$G$27)) -> 0 | P13: 0 | Q13: 1
A14: ALONSO Fernando | B14: ASTON MARTIN | G14: 0 | N14: BOTTAS Valtteri | O14: =IF(Japon!$D$32="",0,SUM(Bahrein:Qatar!$G$32)) -> 0 | P14: 0 | Q14: 1
A15: STROLL Lance | G15: 0 | N15: GASLY Pierre | O15: =IF(Japon!$D$20="",0,SUM(Bahrein:Qatar!$G$20)) -> 0 | P15: 0 | Q15: 1
G16: 0 | N16: OCON Sebastian | O16: =IF(Japon!$D$21="",0,SUM(Bahrein:Qatar!$G$21)) -> 0 | P16: 0 | Q16: 1
A17: ALBON Alexander | B17: WILLIAMS | G17: 0 | N17: PIASTRI Oscar | O17: =IF(Japon!$D$30="",0,SUM(Bahrein:Qatar!$G$30)) -> 0 | P17: 0 | Q17: 1
A18: SARGEANT Logan | G18: 0 | N18: GUANYU Zhou | O18: =IF(Japon!$D$33="",0,SUM(Bahrein:Qatar!$G$33)) -> 0 | P18: 0 | Q18: 1
G19: 0 | N19: MAGNUSSEN Kevin | O19: =IF(Japon!$D$26="",0,SUM(Bahrein:Qatar!$G$26)) -> 0 | P19: 0 | Q19: 1
A20: GASLY Pierre | B20: ALPINE F1 TEAM | G20: 0 | N20: ALBON Alexander | O20: =IF(Japon!$D$17="",0,SUM(Bahrein:Qatar!$G$17)) -> 0 | P20: 0 | Q20: 1
A21: OCON Sebastian | G21: 0 | N21: TSUNODA Yoki | O21: =IF(Japon!$D$23="",0,SUM(Bahrein:Qatar!$G$23)) -> 0 | P21: 0 | Q21: 1
G22: 0 | N22: SARGEANT Logan | O22: =IF(Japon!$D$18="",0,SUM(Bahrein:Qatar!$G$18)) -> 0 | P22: 0 | Q22: 1
A23: TSUNODA Yoki | B23: ALPHA TAURI | G23: 0 | N23: DEVRIES Nyck | O23: =IF(Japon!$D$24="",0,SUM(Bahrein:Qatar!$G$24)) -> 0 | P23: 0 | Q23: 1
A24: DEVRIES Nyck | G24: 0
G25: 0
A26: MAGNUSSEN Kevin | B26: HAAS | G26: 0
A27: HULKENBERG Nico | G27: 0
G28: 0
A29: NORRIS Lando | B29: Mc LAREN | G29: 0
A30: PIASTRI Oscar | G30: 0
G31: 0
A32: BOTTAS Valtteri | B32: ALFA ROMÉO | G32: 0
A33: GUANYU Zhou | G33: 0
G34: 0

Sheet USA
A1: AUSTIN - 22 OCTOBRE 2023
A3: PILOTES | B3: ECURIES | C3: VOITURES | D3: Finish | E3: Pôle | F3: Pt tour | G3: Points | H3: Sprint | I3: ÉCURIES | J3: Points | K3: Écart | L3: Rang | N3: Noms | O3: Points | P3: Écart | Q3: Rang
I4: Mc LAREN | J4: =IF(SUM(Qatar!$G$5:$G$34)=0,0,SUM(Bahrein:USA!$G$29:$G$31)) -> 0 | L4: =IF(J4="",0,(RANK(J4,$J$4:$J$13))) -> 1 | N4: VERSTAPPEN Max | O4: =IF(Qatar!$D$11="",0,SUM(Bahrein:USA!$G$11)) -> 0 | Q4: =IF(O4="",0,(RANK(O4,$O$4:$O$23))) -> 1
A5: HAMILTON Lewis | B5: MERCEDES | G5: =IFERROR(CHOOSE(D5,25,18,15,12,10,8,6,4,2,1),0)+IFERROR(CHOOSE(H5,8,7,6,5,4,3,2,1),0)+F5 -> 0 | I5: FERRARI | J5: =IF(SUM(Qatar!$G$5:$G$34)=0,0,SUM(Bahrein:USA!$G$8:$G$10)) -> 0 | K5: =J4-J5 -> 0 | L5: =IF(J5="",0,(RANK(J5,$J$4:$J$13))) -> 1 | N5: PEREZ Sergio | O5: =IF(Qatar!$D$12="",0,SUM(Bahrein:USA!$G$12)) -> 0 | P5: =O4-O5 -> 0 | Q5: =IF(O5="",0,(RANK(O5,$O$4:$O$23))) -> 1
A6: RUSSELL George | G6: =IFERROR(CHOOSE(D6,25,18,15,12,10,8,6,4,2,1),0)+IFERROR(CHOOSE(H6,8,7,6,5,4,3,2,1),0)+F6 -> 0 | I6: WILLIAMS | J6: =IF(SUM(Qatar!$G$5:$G$34)=0,0,SUM(Bahrein:USA!$G$17:$G$19)) -> 0 | K6: =J5-J6 -> 0 | L6: 1 | N6: ALONSO Fernando | O6: =IF(Qatar!$D$14="",0,SUM(Bahrein:USA!$G$14)) -> 0 | P6: =O5-O6 -> 0 | Q6: 1
G7: 0 | I7: ALFA ROMÉO | J7: =IF(SUM(Qatar!$G$5:$G$34)=0,0,SUM(Bahrein:USA!$G$32:$G$34)) -> 0 | K7: 0 | L7: 1 | N7: HAMILTON Lewis | O7: =IF(Qatar!$D$5="",0,SUM(Bahrein:USA!$G$5)) -> 0 | P7: 0 | Q7: 1
A8: SAINZ.Jr Carlos | B8: FERRARI | G8: 0 | I8: MERCEDES | J8: =IF(SUM(Qatar!$G$5:$G$34)=0,0,SUM(Bahrein:USA!$G$5:$G$7)) -> 0 | K8: 0 | L8: 1 | N8: SAINZ.Jr Carlos | O8: =IF(Qatar!$D$8="",0,SUM(Bahrein:USA!$G$8)) -> 0 | P8: 0 | Q8: 1
A9: LECLERC Charles | G9: 0 | I9: RED BULL RACING | J9: =IF(SUM(Qatar!$G$5:$G$34)=0,0,SUM(Bahrein:USA!$G$11:$G$13)) -> 0 | K9: 0 | L9: 1 | N9: STROLL Lance | O9: =IF(Qatar!$D$15="",0,SUM(Bahrein:USA!$G$15)) -> 0 | P9: 0 | Q9: 1
G10: 0 | I10: ASTON MARTIN | J10: =IF(SUM(Qatar!$G$5:$G$34)=0,0,SUM(Bahrein:USA!$G$14:$G$16)) -> 0 | K10: 0 | L10: 1 | N10: RUSSEL George | O10: =IF(Qatar!$D$6="",0,SUM(Bahrein:USA!$G$6)) -> 0 | P10: 0 | Q10: 1
A11: VERSTAPPEN Max | B11: RED BULL RACING | G11: 0 | I11: ALPINE F1 TEAM | J11: =IF(SUM(Qatar!$G$5:$G$34)=0,0,SUM(Bahrein:USA!$G$20:$G$22)) -> 0 | K11: 0 | L11: 1 | N11: NORRIS Lando | O11: =IF(Qatar!$D$29="",0,SUM(Bahrein:USA!$G$29)) -> 0 | P11: 0 | Q11: 1
A12: PEREZ Sergio | G12: 0 | I12: ALPHA TAURI | J12: =IF(SUM(Qatar!$G$5:$G$34)=0,0,SUM(Bahrein:USA!$G$23:$G$25)) -> 0 | K12: 0 | L12: 1 | N12: LECLERC Charles | O12: =IF(Qatar!$D$9="",0,SUM(Bahrein:USA!$G$9)) -> 0 | P12: 0 | Q12: 1
G13: 0 | I13: HAAS | J13: =IF(SUM(Qatar!$G$5:$G$34)=0,0,SUM(Bahrein:USA!$G$26:$G$28)) -> 0 | K13: 0 | L13: 1 | N13: HULKENBERG Nico | O13: =IF(Qatar!$D$27="",0,SUM(Bahrein:USA!$G$27)) -> 0 | P13: 0 | Q13: 1
A14: ALONSO Fernando | B14: ASTON MARTIN | G14: 0 | N14: BOTTAS Valtteri | O14: =IF(Qatar!$D$32="",0,SUM(Bahrein:USA!$G$32)) -> 0 | P14: 0 | Q14: 1
A15: STROLL Lance | G15: 0 | N15: GASLY Pierre | O15: =IF(Qatar!$D$20="",0,SUM(Bahrein:USA!$G$20)) -> 0 | P15: 0 | Q15: 1
G16: 0 | N16: OCON Sebastian | O16: =IF(Qatar!$D$21="",0,SUM(Bahrein:USA!$G$21)) -> 0 | P16: 0 | Q16: 1
A17: ALBON Alexander | B17: WILLIAMS | G17: 0 | N17: PIASTRI Oscar | O17: =IF(Qatar!$D$30="",0,SUM(Bahrein:USA!$G$30)) -> 0 | P17: 0 | Q17: 1
A18: SARGEANT Logan | G18: 0 | N18: GUANYU Zhou | O18: =IF(Qatar!$D$33="",0,SUM(Bahrein:USA!$G$33)) -> 0 | P18: 0 | Q18: 1
G19: 0 | N19: ALBON Alexander | O19: =IF(Qatar!$D$17="",0,SUM(Bahrein:USA!$G$17)) -> 0 | P19: 0 | Q19: 1
A20: GASLY Pierre | B20: ALPINE F1 TEAM | G20: 0 | N20: MAGNUSSEN Kevin | O20: =IF(Qatar!$D$26="",0,SUM(Bahrein:USA!$G$26)) -> 0 | P20: 0 | Q20: 1
A21: OCON Sebastian | G21: 0 | N21: TSUNODA Yoki | O21: =IF(Qatar!$D$23="",0,SUM(Bahrein:USA!$G$23)) -> 0 | P21: 0 | Q21: 1
G22: 0 | N22: DEVRIES Nyck | O22: =IF(Qatar!$D$24="",0,SUM(Bahrein:USA!$G$24)) -> 0 | P22: 0 | Q22: 1
A23: TSUNODA Yoki | B23: ALPHA TAURI | G23: 0 | N23: SARGEANT Logan | O23: =IF(Qatar!$D$18="",0,SUM(Bahrein:USA!$G$18)) -> 0 | P23: 0 | Q23: 1
A24: DEVRIES Nyck | G24: 0
G25: 0
A26: MAGNUSSEN Kevin | B26: HAAS | G26: 0
A27: HULKENBERG Nico | G27: 0
G28: 0
A29: NORRIS Lando | B29: Mc LAREN | G29: 0
A30: PIASTRI Oscar | G30: 0
G31: 0
A32: BOTTAS Valtteri | B32: ALFA ROMÉO | G32: 0
A33: GUANYU Zhou | G33: 0
G34: 0

Sheet Mexique
A1: MEXICO - 29 OCTOBRE 2023
A3: PILOTES | B3: ECURIES | C3: VOITURES | D3: Finish | E3: Pôle | F3: Pt tour | G3: Points | I3: ÉCURIES | J3: Points | K3: Écart | L3: Rang | N3: Noms | O3: Points | P3: Écart | Q3: Rang
I4: MERCEDES | J4: =IF(SUM(USA!$G$5:$G$34)=0,0,SUM(Bahrein:Mexique!$G$5:$G$7)) -> 0 | L4: =IF(J4="",0,(RANK(J4,$J$4:$J$13))) -> 1 | N4: VERSTAPPEN Max | O4: =IF(USA!$D$11="",0,SUM(Bahrein:Mexique!$G$11)) -> 0 | Q4: =IF(O4="",0,(RANK(O4,$O$4:$O$23))) -> 1
A5: HAMILTON Lewis | B5: MERCEDES | G5: =IFERROR(CHOOSE(D5,25,18,15,12,10,8,6,4,2,1)+(F5=1),0) -> 0 | I5: FERRARI | J5: =IF(SUM(USA!$G$5:$G$34)=0,0,SUM(Bahrein:Mexique!$G$8:$G$10)) -> 0 | K5: =J4-J5 -> 0 | L5: =IF(J5="",0,(RANK(J5,$J$4:$J$13))) -> 1 | N5: PEREZ Sergio | O5: =IF(USA!$D$12="",0,SUM(Bahrein:Mexique!$G$12)) -> 0 | P5: =O4-O5 -> 0 | Q5: =IF(O5="",0,(RANK(O5,$O$4:$O$23))) -> 1
A6: RUSSELL George | G6: =IFERROR(CHOOSE(D6,25,18,15,12,10,8,6,4,2,1)+(F6=1),0) -> 0 | I6: RED BULL RACING | J6: =IF(SUM(USA!$G$5:$G$34)=0,0,SUM(Bahrein:Mexique!$G$11:$G$13)) -> 0 | K6: =J5-J6 -> 0 | L6: 1 | N6: ALONSO Fernando | O6: =IF(USA!$D$14="",0,SUM(Bahrein:Mexique!$G$14)) -> 0 | P6: =O5-O6 -> 0 | Q6: 1
G7: 0 | I7: Mc LAREN | J7: =IF(SUM(USA!$G$5:$G$34)=0,0,SUM(Bahrein:Mexique!$G$29:$G$31)) -> 0 | K7: 0 | L7: 1 | N7: HAMILTON Lewis | O7: =IF(USA!$D$5="",0,SUM(Bahrein:Mexique!$G$5)) -> 0 | P7: 0 | Q7: 1
A8: SAINZ.Jr Carlos | B8: FERRARI | G8: 0 | I8: WILLIAMS | J8: =IF(SUM(USA!$G$5:$G$34)=0,0,SUM(Bahrein:Mexique!$G$17:$G$19)) -> 0 | K8: 0 | L8: 1 | N8: SAINZ.Jr Carlos | O8: =IF(USA!$D$8="",0,SUM(Bahrein:Mexique!$G$8)) -> 0 | P8: 0 | Q8: 1
A9: LECLERC Charles | G9: 0 | I9: ALFA ROMÉO | J9: =IF(SUM(USA!$G$5:$G$34)=0,0,SUM(Bahrein:Mexique!$G$32:$G$34)) -> 0 | K9: 0 | L9: 1 | N9: STROLL Lance | O9: =IF(USA!$D$15="",0,SUM(Bahrein:Mexique!$G$15)) -> 0 | P9: 0 | Q9: 1
G10: 0 | I10: ASTON MARTIN | J10: =IF(SUM(USA!$G$5:$G$34)=0,0,SUM(Bahrein:Mexique!$G$14:$G$16)) -> 0 | K10: 0 | L10: 1 | N10: RUSSEL George | O10: =IF(USA!$D$6="",0,SUM(Bahrein:Mexique!$G$6)) -> 0 | P10: 0 | Q10: 1
A11: VERSTAPPEN Max | B11: RED BULL RACING | G11: 0 | I11: ALPINE F1 TEAM | J11: =IF(SUM(USA!$G$5:$G$34)=0,0,SUM(Bahrein:Mexique!$G$20:$G$22)) -> 0 | K11: 0 | L11: 1 | N11: NORRIS Lando | O11: =IF(USA!$D$29="",0,SUM(Bahrein:Mexique!$G$29)) -> 0 | P11: 0 | Q11: 1
A12: PEREZ Sergio | G12: 0 | I12: ALPHA TAURI | J12: =IF(SUM(USA!$G$5:$G$34)=0,0,SUM(Bahrein:Mexique!$G$23:$G$25)) -> 0 | K12: 0 | L12: 1 | N12: LECLERC Charles | O12: =IF(USA!$D$9="",0,SUM(Bahrein:Mexique!$G$9)) -> 0 | P12: 0 | Q12: 1
G13: 0 | I13: HAAS | J13: =IF(SUM(USA!$G$5:$G$34)=0,0,SUM(Bahrein:Mexique!$G$26:$G$28)) -> 0 | K13: 0 | L13: 1 | N13: HULKENBERG Nico | O13: =IF(USA!$D$27="",0,SUM(Bahrein:Mexique!$G$27)) -> 0 | P13: 0 | Q13: 1
A14: ALONSO Fernando | B14: ASTON MARTIN | G14: 0 | N14: BOTTAS Valtteri | O14: =IF(USA!$D$32="",0,SUM(Bahrein:Mexique!$G$32)) -> 0 | P14: 0 | Q14: 1
A15: STROLL Lance | G15: 0 | N15: GASLY Pierre | O15: =IF(USA!$D$20="",0,SUM(Bahrein:Mexique!$G$20)) -> 0 | P15: 0 | Q15: 1
G16: 0 | N16: OCON Sebastian | O16: =IF(USA!$D$21="",0,SUM(Bahrein:Mexique!$G$21)) -> 0 | P16: 0 | Q16: 1
A17: ALBON Alexander | B17: WILLIAMS | G17: 0 | N17: PIASTRI Oscar | O17: =IF(USA!$D$30="",0,SUM(Bahrein:Mexique!$G$30)) -> 0 | P17: 0 | Q17: 1
A18: SARGEANT Logan | G18: 0 | N18: GUANYU Zhou | O18: =IF(USA!$D$33="",0,SUM(Bahrein:Mexique!$G$33)) -> 0 | P18: 0 | Q18: 1
G19: 0 | N19: ALBON Alexander | O19: =IF(USA!$D$17="",0,SUM(Bahrein:Mexique!$G$17)) -> 0 | P19: 0 | Q19: 1
A20: GASLY Pierre | B20: ALPINE F1 TEAM | G20: 0 | N20: MAGNUSSEN Kevin | O20: =IF(USA!$D$26="",0,SUM(Bahrein:Mexique!$G$26)) -> 0 | P20: 0 | Q20: 1
A21: OCON Sebastian | G21: 0 | N21: TSUNODA Yoki | O21: =IF(USA!$D$23="",0,SUM(Bahrein:Mexique!$G$23)) -> 0 | P21: 0 | Q21: 1
G22: 0 | N22: SARGEANT Logan | O22: =IF(USA!$D$18="",0,SUM(Bahrein:Mexique!$G$18)) -> 0 | P22: 0 | Q22: 1
A23: TSUNODA Yoki | B23: ALPHA TAURI | G23: 0 | N23: DEVRIES Nyck | O23: =IF(USA!$D$24="",0,SUM(Bahrein:Mexique!$G$24)) -> 0 | P23: 0 | Q23: 1
A24: DEVRIES Nyck | G24: 0
G25: 0
A26: MAGNUSSEN Kevin | B26: HAAS | G26: 0
A27: HULKENBERG Nico | G27: 0
G28: 0
A29: NORRIS Lando | B29: Mc LAREN | G29: 0
A30: PIASTRI Oscar | G30: 0
G31: 0
A32: BOTTAS Valtteri | B32: ALFA ROMÉO | G32: 0
A33: GUANYU Zhou | G33: 0
G34: 0

Sheet Brésil
A1: INTERLAGOS - 5 NOVEMBRE 2023
A3: PILOTES | B3: ECURIES | C3: VOITURES | D3: Finish | E3: Pôle | F3: Pt tour | G3: Points | H3: Sprint | I3: ÉCURIES | J3: Points | K3: Écart | L3: Rang | N3: Noms | O3: Points | P3: Écart | Q3: Rang
I4: Mc LAREN | J4: =IF(SUM(Mexique!$G$5:$G$34)=0,0,SUM(Bahrein:Brésil!$G$29:$G$31)) -> 0 | L4: =IF(J4="",0,(RANK(J4,$J$4:$J$13))) -> 1 | N4: VERSTAPPEN Max | O4: =IF(Mexique!$D$11="",0,SUM(Bahrein:Brésil!$G$11)) -> 0 | Q4: =IF(O4="",0,(RANK(O4,$O$4:$O$23))) -> 1
A5: HAMILTON Lewis | B5: MERCEDES | G5: =IFERROR(CHOOSE(D5,25,18,15,12,10,8,6,4,2,1),0)+IFERROR(CHOOSE(H5,8,7,6,5,4,3,2,1),0)+F5 -> 0 | I5: FERRARI | J5: =IF(SUM(Mexique!$G$5:$G$34)=0,0,SUM(Bahrein:Brésil!$G$8:$G$10)) -> 0 | K5: =J4-J5 -> 0 | L5: =IF(J5="",0,(RANK(J5,$J$4:$J$13))) -> 1 | N5: PEREZ Sergio | O5: =IF(Mexique!$D$12="",0,SUM(Bahrein:Brésil!$G$12)) -> 0 | P5: =O4-O5 -> 0 | Q5: =IF(O5="",0,(RANK(O5,$O$4:$O$23))) -> 1
A6: RUSSELL George | G6: =IFERROR(CHOOSE(D6,25,18,15,12,10,8,6,4,2,1),0)+IFERROR(CHOOSE(H6,8,7,6,5,4,3,2,1),0)+F6 -> 0 | I6: WILLIAMS | J6: =IF(SUM(Mexique!$G$5:$G$34)=0,0,SUM(Bahrein:Brésil!$G$17:$G$19)) -> 0 | K6: =J5-J6 -> 0 | L6: 1 | N6: ALONSO Fernando | O6: =IF(Mexique!$D$14="",0,SUM(Bahrein:Brésil!$G$14)) -> 0 | P6: =O5-O6 -> 0 | Q6: 1
G7: 0 | I7: ALFA ROMÉO | J7: =IF(SUM(Mexique!$G$5:$G$34)=0,0,SUM(Bahrein:Brésil!$G$32:$G$34)) -> 0 | K7: 0 | L7: 1 | N7: HAMILTON Lewis | O7: =IF(Mexique!$D$5="",0,SUM(Bahrein:Brésil!$G$5)) -> 0 | P7: 0 | Q7: 1
A8: SAINZ.Jr Carlos | B8: FERRARI | G8: 0 | I8: MERCEDES | J8: =IF(SUM(Mexique!$G$5:$G$34)=0,0,SUM(Bahrein:Brésil!$G$5:$G$7)) -> 0 | K8: 0 | L8: 1 | N8: SAINZ.Jr Carlos | O8: =IF(Mexique!$D$8="",0,SUM(Bahrein:Brésil!$G$8)) -> 0 | P8: 0 | Q8: 1
A9: LECLERC Charles | G9: 0 | I9: RED BULL RACING | J9: =IF(SUM(Mexique!$G$5:$G$34)=0,0,SUM(Bahrein:Brésil!$G$11:$G$13)) -> 0 | K9: 0 | L9: 1 | N9: STROLL Lance | O9: =IF(Mexique!$D$15="",0,SUM(Bahrein:Brésil!$G$15)) -> 0 | P9: 0 | Q9: 1
G10: 0 | I10: ASTON MARTIN | J10: =IF(SUM(Mexique!$G$5:$G$34)=0,0,SUM(Bahrein:Brésil!$G$14:$G$16)) -> 0 | K10: 0 | L10: 1 | N10: RUSSEL George | O10: =IF(Mexique!$D$6="",0,SUM(Bahrein:Brésil!$G$6)) -> 0 | P10: 0 | Q10: 1
A11: VERSTAPPEN Max | B11: RED BULL RACING | G11: 0 | I11: ALPINE F1 TEAM | J11: =IF(SUM(Mexique!$G$5:$G$34)=0,0,SUM(Bahrein:Brésil!$G$20:$G$22)) -> 0 | K11: 0 | L11: 1 | N11: NORRIS Lando | O11: =IF(Mexique!$D$29="",0,SUM(Bahrein:Brésil!$G$29)) -> 0 | P11: 0 | Q11: 1
A12: PEREZ Sergio | G12: 0 | I12: ALPHA TAURI | J12: =IF(SUM(Mexique!$G$5:$G$34)=0,0,SUM(Bahrein:Brésil!$G$23:$G$25)) -> 0 | K12: 0 | L12: 1 | N12: LECLERC Charles | O12: =IF(Mexique!$D$9="",0,SUM(Bahrein:Brésil!$G$9)) -> 0 | P12: 0 | Q12: 1
G13: 0 | I13: HAAS | J13: =IF(SUM(Mexique!$G$5:$G$34)=0,0,SUM(Bahrein:Brésil!$G$26:$G$28)) -> 0 | K13: 0 | L13: 1 | N13: HULKENBERG Nico | O13: =IF(Mexique!$D$27="",0,SUM(Bahrein:Brésil!$G$27)) -> 0 | P13: 0 | Q13: 1
A14: ALONSO Fernando | B14: ASTON MARTIN | G14: 0 | N14: BOTTAS Valtteri | O14: =IF(Mexique!$D$32="",0,SUM(Bahrein:Brésil!$G$32)) -> 0 | P14: 0 | Q14: 1
A15: STROLL Lance | G15: 0 | N15: GASLY Pierre | O15: =IF(Mexique!$D$20="",0,SUM(Bahrein:Brésil!$G$20)) -> 0 | P15: 0 | Q15: 1
G16: 0 | N16: OCON Sebastian | O16: =IF(Mexique!$D$21="",0,SUM(Bahrein:Brésil!$G$21)) -> 0 | P16: 0 | Q16: 1
A17: ALBON Alexander | B17: WILLIAMS | G17: 0 | N17: PIASTRI Oscar | O17: =IF(Mexique!$D$30="",0,SUM(Bahrein:Brésil!$G$30)) -> 0 | P17: 0 | Q17: 1
A18: SARGEANT Logan | G18: 0 | N18: GUANYU Zhou | O18: =IF(Mexique!$D$33="",0,SUM(Bahrein:Brésil!$G$33)) -> 0 | P18: 0 | Q18: 1
G19: 0 | N19: ALBON Alexander | O19: =IF(Mexique!$D$17="",0,SUM(Bahrein:Brésil!$G$17)) -> 0 | P19: 0 | Q19: 1
A20: GASLY Pierre | B20: ALPINE F1 TEAM | G20: 0 | N20: MAGNUSSEN Kevin | O20: =IF(Mexique!$D$26="",0,SUM(Bahrein:Brésil!$G$26)) -> 0 | P20: 0 | Q20: 1
A21: OCON Sebastian | G21: 0 | N21: TSUNODA Yoki | O21: =IF(Mexique!$D$23="",0,SUM(Bahrein:Brésil!$G$23)) -> 0 | P21: 0 | Q21: 1
G22: 0 | N22: DEVRIES Nyck | O22: =IF(Mexique!$D$24="",0,SUM(Bahrein:Brésil!$G$24)) -> 0 | P22: 0 | Q22: 1
A23: TSUNODA Yoki | B23: ALPHA TAURI | G23: 0 | N23: SARGEANT Logan | O23: =IF(Mexique!$D$18="",0,SUM(Bahrein:Brésil!$G$18)) -> 0 | P23: 0 | Q23: 1
A24: DEVRIES Nyck | G24: 0
G25: 0
A26: MAGNUSSEN Kevin | B26: HAAS | G26: 0
A27: HULKENBERG Nico | G27: 0
G28: 0
A29: NORRIS Lando | B29: Mc LAREN | G29: 0
A30: PIASTRI Oscar | G30: 0
G31: 0
A32: BOTTAS Valtteri | B32: ALFA ROMÉO | G32: 0
A33: GUANYU Zhou | G33: 0
G34: 0

Sheet Las Végas
A1: LAS VÉGAS - 18 NOVEMBRE 2023
A3: PILOTES | B3: ECURIES | C3: VOITURES | D3: Finish | E3: Pôle | F3: Pt tour | G3: Points | I3: ÉCURIES | J3: Points | K3: Écart | L3: Rang | N3: Noms | O3: Points | P3: Écart | Q3: Rang
I4: Mc LAREN | J4: =IF(SUM(Brésil!$G$5:$G$34)=0,0,SUM('Bahrein:Las Végas'!$G$29:$G$31)) -> 0 | L4: =IF(J4="",0,(RANK(J4,$J$4:$J$13))) -> 1 | N4: VERSTAPPEN Max | O4: =IF(Brésil!$D$11="",0,SUM(Bahrein:'Las Végas'!$G$11)) -> 0 | Q4: =IF(O4="",0,(RANK(O4,$O$4:$O$23))) -> 1
A5: HAMILTON Lewis | B5: MERCEDES | G5: =IFERROR(CHOOSE(D5,25,18,15,12,10,8,6,4,2,1),0) -> 0 | I5: FERRARI | J5: =IF(SUM(Brésil!$G$5:$G$34)=0,0,SUM(Bahrein:'Las Végas'!$G$8:$G$10)) -> 0 | K5: =J4-J5 -> 0 | L5: =IF(J5="",0,(RANK(J5,$J$4:$J$13))) -> 1 | N5: PEREZ Sergio | O5: =IF(Brésil!$D$12="",0,SUM(Bahrein:'Las Végas'!$G$12)) -> 0 | P5: =O4-O5 -> 0 | Q5: =IF(O5="",0,(RANK(O5,$O$4:$O$23))) -> 1
A6: RUSSELL George | G6: =IFERROR(CHOOSE(D6,25,18,15,12,10,8,6,4,2,1),0) -> 0 | I6: WILLIAMS | J6: =IF(SUM(Brésil!$G$5:$G$34)=0,0,SUM(Bahrein:'Las Végas'!$G$17:$G$19)) -> 0 | K6: =J5-J6 -> 0 | L6: 1 | N6: ALONSO Fernando | O6: =IF(Brésil!$D$14="",0,SUM(Bahrein:'Las Végas'!$G$14)) -> 0 | P6: =O5-O6 -> 0 | Q6: 1
G7: 0 | I7: ALFA ROMÉO | J7: =IF(SUM(Brésil!$G$5:$G$34)=0,0,SUM(Bahrein:'Las Végas'!$G$32:$G$34)) -> 0 | K7: 0 | L7: 1 | N7: HAMILTON Lewis | O7: =IF(Brésil!$D$5="",0,SUM(Bahrein:'Las Végas'!$G$5)) -> 0 | P7: 0 | Q7: 1
A8: SAINZ.Jr Carlos | B8: FERRARI | G8: 0 | I8: MERCEDES | J8: =IF(SUM(Brésil!$G$5:$G$34)=0,0,SUM(Bahrein:'Las Végas'!$G$5:$G$7)) -> 0 | K8: 0 | L8: 1 | N8: SAINZ.Jr Carlos | O8: =IF(Brésil!$D$8="",0,SUM(Bahrein:'Las Végas'!$G$8)) -> 0 | P8: 0 | Q8: 1
A9: LECLERC Charles | G9: 0 | I9: RED BULL RACING | J9: =IF(SUM(Brésil!$G$5:$G$34)=0,0,SUM(Bahrein:'Las Végas'!$G$11:$G$13)) -> 0 | K9: 0 | L9: 1 | N9: STROLL Lance | O9: =IF(Brésil!$D$15="",0,SUM(Bahrein:'Las Végas'!$G$15)) -> 0 | P9: 0 | Q9: 1
G10: 0 | I10: ASTON MARTIN | J10: =IF(SUM(Brésil!$G$5:$G$34)=0,0,SUM(Bahrein:'Las Végas'!$G$14:$G$16)) -> 0 | K10: 0 | L10: 1 | N10: RUSSEL George | O10: =IF(Brésil!$D$6="",0,SUM(Bahrein:'Las Végas'!$G$6)) -> 0 | P10: 0 | Q10: 1
A11: VERSTAPPEN Max | B11: RED BULL RACING | G11: 0 | I11: ALPINE F1 TEAM | J11: =IF(SUM(Brésil!$G$5:$G$34)=0,0,SUM(Bahrein:'Las Végas'!$G$20:$G$22)) -> 0 | K11: 0 | L11: 1 | N11: NORRIS Lando | O11: =IF(Brésil!$D$29="",0,SUM(Bahrein:'Las Végas'!$G$29)) -> 0 | P11: 0 | Q11: 1
A12: PEREZ Sergio | G12: 0 | I12: ALPHA TAURI | J12: =IF(SUM(Brésil!$G$5:$G$34)=0,0,SUM(Bahrein:'Las Végas'!$G$23:$G$25)) -> 0 | K12: 0 | L12: 1 | N12: LECLERC Charles | O12: =IF(Brésil!$D$9="",0,SUM(Bahrein:'Las Végas'!$G$9)) -> 0 | P12: 0 | Q12: 1
G13: 0 | I13: HAAS | J13: =IF(SUM(Brésil!$G$5:$G$34)=0,0,SUM(Bahrein:'Las Végas'!$G$26:$G$28)) -> 0 | K13: 0 | L13: 1 | N13: HULKENBERG Nico | O13: =IF(Brésil!$D$27="",0,SUM(Bahrein:'Las Végas'!$G$27)) -> 0 | P13: 0 | Q13: 1
A14: ALONSO Fernando | B14: ASTON MARTIN | G14: 0 | N14: BOTTAS Valtteri | O14: =IF(Brésil!$D$32="",0,SUM(Bahrein:'Las Végas'!$G$32)) -> 0 | P14: 0 | Q14: 1
A15: STROLL Lance | G15: 0 | N15: GASLY Pierre | O15: =IF(Brésil!$D$20="",0,SUM(Bahrein:'Las Végas'!$G$20)) -> 0 | P15: 0 | Q15: 1
G16: 0 | N16: OCON Sebastian | O16: =IF(Brésil!$D$21="",0,SUM(Bahrein:'Las Végas'!$G$21)) -> 0 | P16: 0 | Q16: 1
A17: ALBON Alexander | B17: WILLIAMS | G17: 0 | N17: PIASTRI Oscar | O17: =IF(Brésil!$D$30="",0,SUM(Bahrein:'Las Végas'!$G$30)) -> 0 | P17: 0 | Q17: 1
A18: SARGEANT Logan | G18: 0 | N18: GUANYU Zhou | O18: =IF(Brésil!$D$33="",0,SUM(Bahrein:'Las Végas'!$G$33)) -> 0 | P18: 0 | Q18: 1
G19: 0 | N19: ALBON Alexander | O19: =IF(Brésil!$D$17="",0,SUM(Bahrein:'Las Végas'!$G$17)) -> 0 | P19: 0 | Q19: 1
A20: GASLY Pierre | B20: ALPINE F1 TEAM | G20: 0 | N20: MAGNUSSEN Kevin | O20: =IF(Brésil!$D$26="",0,SUM(Bahrein:'Las Végas'!$G$26)) -> 0 | P20: 0 | Q20: 1
A21: OCON Sebastian | G21: 0 | N21: TSUNODA Yoki | O21: =IF(Brésil!$D$23="",0,SUM(Bahrein:'Las Végas'!$G$23)) -> 0 | P21: 0 | Q21: 1
G22: 0 | N22: DEVRIES Nyck | O22: =IF(Brésil!$D$24="",0,SUM(Bahrein:'Las Végas'!$G$24)) -> 0 | P22: 0 | Q22: 1
A23: TSUNODA Yoki | B23: ALPHA TAURI | G23: 0 | N23: SARGEANT Logan | O23: =IF(Brésil!$D$18="",0,SUM(Bahrein:'Las Végas'!$G$18)) -> 0 | P23: 0 | Q23: 1
A24: DEVRIES Nyck | G24: 0
G25: 0
A26: MAGNUSSEN Kevin | B26: HAAS | G26: 0
A27: HULKENBERG Nico | G27: 0
G28: 0
A29: NORRIS Lando | B29: Mc LAREN | G29: 0
A30: PIASTRI Oscar | G30: 0
G31: 0
A32: BOTTAS Valtteri | B32: ALFA ROMÉO | G32: 0
A33: GUANYU Zhou | G33: 0
G34: 0

Sheet AbuDhabi
A1: YAS MARINA - 26 NOVEMBRE 2023
A3: PILOTES | B3: ECURIES | C3: VOITURES | D3: Finish | E3: Pôle | F3: Pt tour | G3: Points | I3: ÉCURIES | J3: Points | K3: Écart | L3: Rang | N3: Noms | O3: Points | P3: Écart | Q3: Rang
I4: MERCEDES | J4: =IF(SUM('Las Végas'!$G$5:$G$34)=0,0,SUM(Bahrein:AbuDhabi!$G$5:$G$7)) -> 0 | L4: =IF(J4="",0,(RANK(J4,$J$4:$J$13))) -> 1 | N4: VERSTAPPEN Max | O4: =IF('Las Végas'!$D$11="",0,SUM(Bahrein:AbuDhabi!$G$11:$G$11)) -> 0 | Q4: =IF(O4="",0,(RANK(O4,$O$4:$O$23))) -> 1
A5: HAMILTON Lewis | B5: MERCEDES | G5: =IFERROR(CHOOSE(D5,25,18,15,12,10,8,6,4,2,1)+(F5=1),0) -> 0 | I5: HAAS | J5: =IF(SUM('Las Végas'!$G$5:$G$34)=0,0,SUM(Bahrein:AbuDhabi!$G$26:$G$28)) -> 0 | K5: =J4-J5 -> 0 | L5: =IF(J5="",0,(RANK(J5,$J$4:$J$13))) -> 1 | N5: PEREZ Sergio | O5: =IF('Las Végas'!$D$12="",0,SUM(Bahrein:AbuDhabi!$G$12)) -> 0 | P5: =O4-O5 -> 0 | Q5: =IF(O5="",0,(RANK(O5,$O$4:$O$23))) -> 1
A6: RUSSELL George | G6: =IFERROR(CHOOSE(D6,25,18,15,12,10,8,6,4,2,1)+(F6=1),0) -> 0 | I6: Mc LAREN | J6: =IF(SUM('Las Végas'!$G$5:$G$34)=0,0,SUM(Bahrein:AbuDhabi!$G$29:$G$31)) -> 0 | K6: =J5-J6 -> 0 | L6: 1 | N6: ALONSO Fernando | O6: =IF('Las Végas'!$D$14="",0,SUM(Bahrein:AbuDhabi!$G$14)) -> 0 | P6: =O5-O6 -> 0 | Q6: 1
G7: 0 | I7: FERRARI | J7: =IF(SUM('Las Végas'!$G$5:$G$34)=0,0,SUM(Bahrein:AbuDhabi!$G$8:$G$10)) -> 0 | K7: 0 | L7: 1 | N7: HAMILTON Lewis | O7: =IF('Las Végas'!$D$5="",0,SUM(Bahrein:AbuDhabi!$G$5)) -> 0 | P7: 0 | Q7: 1
A8: SAINZ.Jr Carlos | B8: FERRARI | G8: 0 | I8: WILLIAMS | J8: =IF(SUM('Las Végas'!$G$5:$G$34)=0,0,SUM(Bahrein:AbuDhabi!$G$17:$G$19)) -> 0 | K8: 0 | L8: 1 | N8: SAINZ.Jr Carlos | O8: =IF('Las Végas'!$D$8="",0,SUM(Bahrein:AbuDhabi!$G$8)) -> 0 | P8: 0 | Q8: 1
A9: LECLERC Charles | G9: 0 | I9: ALFA ROMÉO | J9: =IF(SUM('Las Végas'!$G$5:$G$34)=0,0,SUM(Bahrein:AbuDhabi!$G$32:$G$34)) -> 0 | K9: 0 | L9: 1 | N9: STROLL Lance | O9: =IF('Las Végas'!$D$15="",0,SUM(Bahrein:AbuDhabi!$G$15)) -> 0 | P9: 0 | Q9: 1
G10: 0 | I10: RED BULL RACING | J10: =IF(SUM('Las Végas'!$G$5:$G$34)=0,0,SUM(Bahrein:AbuDhabi!$G$11:$G$13)) -> 0 | K10: 0 | L10: 1 | N10: RUSSEL George | O10: =IF('Las Végas'!$D$6="",0,SUM(Bahrein:AbuDhabi!$G$6)) -> 0 | P10: 0 | Q10: 1
A11: VERSTAPPEN Max | B11: RED BULL RACING | G11: 0 | I11: ASTON MARTIN | J11: =IF(SUM('Las Végas'!$G$5:$G$34)=0,0,SUM(Bahrein:AbuDhabi!$G$14:$G$16)) -> 0 | K11: 0 | L11: 1 | N11: NORRIS Lando | O11: =IF('Las Végas'!$D$29="",0,SUM(Bahrein:AbuDhabi!$G$29)) -> 0 | P11: 0 | Q11: 1
A12: PEREZ Sergio | G12: 0 | I12: ALPINE F1 TEAM | J12: =IF(SUM('Las Végas'!$G$5:$G$34)=0,0,SUM(Bahrein:AbuDhabi!$G$20:$G$22)) -> 0 | K12: 0 | L12: 1 | N12: LECLERC Charles | O12: =IF('Las Végas'!$D$9="",0,SUM(Bahrein:AbuDhabi!$G$9)) -> 0 | P12: 0 | Q12: 1
G13: 0 | I13: ALPHA TAURI | J13: =IF(SUM('Las Végas'!$G$5:$G$34)=0,0,SUM(Bahrein:AbuDhabi!$G$23:$G$25)) -> 0 | K13: 0 | L13: 1 | N13: HULKENBERG Nico | O13: =IF('Las Végas'!$D$27="",0,SUM(Bahrein:AbuDhabi!$G$27)) -> 0 | P13: 0 | Q13: 1
A14: ALONSO Fernando | B14: ASTON MARTIN | G14: 0 | N14: BOTTAS Valtteri | O14: =IF('Las Végas'!$D$32="",0,SUM(Bahrein:AbuDhabi!$G$32)) -> 0 | P14: 0 | Q14: 1
A15: STROLL Lance | G15: 0 | N15: GASLY Pierre | O15: =IF('Las Végas'!$D$20="",0,SUM(Bahrein:AbuDhabi!$G$20)) -> 0 | P15: 0 | Q15: 1
G16: 0 | N16: OCON Sebastian | O16: =IF('Las Végas'!$D$21="",0,SUM(Bahrein:AbuDhabi!$G$21)) -> 0 | P16: 0 | Q16: 1
A17: ALBON Alexander | B17: WILLIAMS | G17: 0 | N17: PIASTRI Oscar | O17: =IF('Las Végas'!$D$30="",0,SUM(Bahrein:AbuDhabi!$G$30)) -> 0 | P17: 0 | Q17: 1
A18: SARGEANT Logan | G18: 0 | N18: GUANYU Zhou | O18: =IF('Las Végas'!$D$33="",0,SUM(Bahrein:AbuDhabi!$G$33)) -> 0 | P18: 0 | Q18: 1
G19: 0 | N19: ALBON Alexander | O19: =IF('Las Végas'!$D$17="",0,SUM(Bahrein:AbuDhabi!$G$17)) -> 0 | P19: 0 | Q19: 1
A20: GASLY Pierre | B20: ALPINE F1 TEAM | G20: 0 | N20: MAGNUSSEN Kevin | O20: =IF('Las Végas'!$D$26="",0,SUM(Bahrein:AbuDhabi!$G$26)) -> 0 | P20: 0 | Q20: 1
A21: OCON Sebastian | G21: 0 | N21: TSUNODA Yoki | O21: =IF('Las Végas'!$D$23="",0,SUM(Bahrein:AbuDhabi!$G$23)) -> 0 | P21: 0 | Q21: 1
G22: 0 | N22: DEVRIES Nyck | O22: =IF('Las Végas'!$D$24="",0,SUM(Bahrein:AbuDhabi!$G$24)) -> 0 | P22: 0 | Q22: 1
A23: TSUNODA Yoki | B23: ALPHA TAURI | G23: 0 | N23: SARGEANT Logan | O23: =IF('Las Végas'!$D$18="",0,SUM(Bahrein:AbuDhabi!$G$18)) -> 0 | P23: 0 | Q23: 1
A24: DEVRIES Nyck | G24: 0
G25: 0
A26: MAGNUSSEN Kevin | B26: HAAS | G26: 0
A27: HULKENBERG Nico | G27: 0
G28: 0
A29: NORRIS Lando | B29: Mc LAREN | G29: 0
A30: PIASTRI Oscar | G30: 0
G31: 0
A32: BOTTAS Valtteri | B32: ALFA ROMÉO | G32: 0
A33: GUANYU Zhou | G33: 0
G34: 0
